{"text_format":"1","workbook":"xlsx","n_sheets":4,"sheets":["Dashboard","Cat Pivot","Supplier Pivot","Speedometer"],"not_rendered":{"charts":3,"images":2,"macros":1,"external_links":1,"defined_names":44,"comments":0,"pivot_tables":6},"unopened":[],"bounds":{"document_bytes":16777216,"sheet_cells":100000,"rows_first":2000,"rows_last":500,"rows_between":2000,"halvings":0,"cell_chars":16384,"cell_head_chars":4096},"cells_cut":0,"cells_raw":0,"read":"whole","date_system":"1900"}

{"sheet":"Dashboard","index":0,"n_rows":29,"n_cols":25,"rows_kept":29,"cut":false,"hidden":false,"merged":[[27,12,27,14],[1,3,1,19],[27,4,28,6],[28,8,28,10],[28,12,28,14],[25,8,25,10],[25,12,25,14],[27,16,28,18],[27,8,27,10],[22,4,22,6],[22,8,22,10],[22,12,22,14],[22,16,22,18],[24,4,25,6],[24,16,25,18],[24,8,24,10],[24,12,24,14],[20,4,20,10],[20,12,20,18],[0,0,0,1]]}
[null,null,null,null,null,null,null,null,null,null,null,null,null,null,null,null,null,null,null,null,null,null,null,null,"VER-USFI-12-JMAY-2019-V1"]
[null,null,null,"Packaging Material Final Buffer Stock vs Opening Stock Ratio",null,null,null,null,null,null,null,null,null,null,null,null,null,null,null,null,null,null,null,null,"Dashboard Procurement.xlsm"]
[]
[]
[null,"DASBOAD BY COLOR",null,null,null,null,null,null,null,null,null,null,null,null,null,null,null,null,null,null,1,{"$f":"\"Open \"&MacroName","v":"Open Dashboard Procurement.xlsm"}]
[null,null,null,null,null,null,null,null,null,null,null,null,null,null,null,null,null,null,null,null,2,"Macro akan membaca data dan menampilkan"]
[null,null,null,null,null,null,null,null,null,null,null,null,null,null,null,null,null,null,null,null,null,"     CATEGORY ALL"]
[null,null,null,null,null,null,null,null,null,null,null,null,null,null,null,null,null,null,null,null,null,"     SUPPLIER ALL"]
[]
[null,null,null,null,null,null,null,null,null,null,null,null,null,null,null,null,null,null,null,null,"3.A","Untuk menampilkan Category Merah"]
[null,null,null,null,null,null,null,null,null,null,null,null,null,null,null,null,null,null,null,null,null,"     Pilih Category di Category kotak Merah"]
[null,null,null,null,null,null,null,null,null,null,null,null,null,null,null,null,null,null,null,null,"3.B","Untuk menampilkan Category Kuning"]
[null,null,null,null,null,null,null,null,null,null,null,null,null,null,null,null,null,null,null,null,null,"     Pilih Category di Category kotak Kuning"]
[null,null,null,null,null,null,null,null,null,null,null,null,null,null,null,null,null,null,null,null,"3.C","Untuk menampilkan Category Kuning"]
[null,null,null,null,null,null,null,null,null,null,null,null,null,null,null,null,null,null,null,null,null,"     Pilih Category di Category kotak Kuning"]
[]
[null,null,null,null,null,null,null,null,null,null,null,null,null,null,null,null,null,null,null,null,"4.A","Untuk menampilkan Supplier Merah"]
[null,null,null,null,null,null,null,null,null,null,null,null,null,null,null,null,null,null,null,null,null,"     Pilih Supplier di Supplier kotak Merah"]
[null,null,null,null,null,null,null,null,null,null,null,null,null,null,null,null,null,null,null,null,"4.B","Untuk menampilkan Supplier Kuning"]
[null,null,null,null,null,null,null,null,null,null,null,null,null,null,null,null,null,null,null,null,null,"     Pilih Supplier di Supplier kotak Kuning"]
[null,null,null,null,"CATEGORY",null,null,null,null,null,null,null,"SUPPLIER",null,null,null,null,null,null,null,"4.C","Untuk menampilkan Supplier Kuning"]
[null,null,null,null,null,null,null,null,null,null,null,null,null,null,null,null,null,null,null,null,null,"     Pilih Supplier di Supplier kotak Kuning"]
[null,null,null,null,"Category Kecap No 1",null,null,null,"ALL",null,null,null,"ALL",null,null,null,"PT 06 INTAN PERMATA"]
[]
[null,null,null,null,"Category Fabrico Cleaner",null,null,null,"Final Buffer Stock",null,null,null,"Final Buffer Stock",null,null,null,"PT 04 PRIMA INDUSTRI"]
[null,null,null,null,null,null,null,null,4362555.3355980311,null,null,null,568.95879952959046]
[]
[null,null,null,null,"Category Bau Badan",null,null,null,"Opening Stock",null,null,null,"Opening Stock",null,null,null,"PT 09 BERDAYA CIPTA BUNGKUS"]
[null,null,null,null,null,null,null,null,8609873.3825164922,null,null,null,290.72000000000003]

{"sheet":"Cat Pivot","index":1,"n_rows":331,"n_cols":25,"rows_kept":331,"cut":false,"hidden":false,"merged":[]}
[null,null,null,null,null,null,null,null,null,null,null,null,null,null,null,null,null,null,null,"Big C","(All)",null,"Big C","PC"]
[]
["Material","Material Description","Category","Big C","UOM","Sum of Final Buffer Stock Quantity","Sum of Opening Stock Wk14 + 1",null,null,"Material","Material Description","Category","Big C","UOM","Sum of Final Buffer Stock Quantity","Sum of Opening Stock Wk7 + 1","Fulfillment","Status",null,"Row Labels","Count of Status","Completion %","Row Labels","Count of Status","Completion %"]
[20064731,"TESTING 191","Category Cair Cair PW","PC","T",18,48,null,null,{"$f":"A4","v":20064731},{"$f":"B4","v":"TESTING 191"},"Category Cair Cair PW","PC","T",18,48,{"$f":"IF(O4=0,\"no buffer stock target\",IFERROR(P4/O4,\"NA\"))","v":2.6666666666666665},{"$f":"IF(Q4=\"no buffer stock target\",\"no buffer stock target\",(IF(Q4>=80%,\"Completed\",\"In Progress\")))","v":"Completed"},null,"Completed",384,{"$f":"U4/(U4+U5)","v":0.60952380952380958},"Completed",256,{"$f":"X4/(X4+X5)","v":0.579185520361991}]
[20064732,"TESTING 192","Category Cair Cair PW","PC","T",18,10,null,null,{"$f":"A5","v":20064732},"TESTING 192","Category Cair Cair PW","PC","T",18,10,{"$f":"IF(O5=0,\"no buffer stock target\",IFERROR(P5/O5,\"NA\"))","v":0.55555555555555558},{"$f":"IF(Q5=\"no buffer stock target\",\"no buffer stock target\",(IF(Q5>=80%,\"Completed\",\"In Progress\")))","v":"In Progress"},null,"In Progress",246,null,"In Progress",186]
[20064992,"TESTING 53","Category Hand & Body Peduli","PC","KG",0,null,null,null,20064992,"TESTING 53","Category Hand & Body Peduli","PC","KG",0,0,"no buffer stock target","no buffer stock target",null,"no buffer stock target",482,null,"no buffer stock target",290]
[20068583,"TESTING 54","Category Kecap No 1","Non-PC","T",113.3,0,null,null,20068583,"TESTING 54","Category Kecap No 1","Non-PC","T",113.3,0,0,"In Progress",null,"Grand Total",1112,null,"Grand Total",732]
[20068810,"TESTING 55","Category Hand & Body Peduli","PC","T",142.8915603198744,0,null,null,20068810,"TESTING 55","Category Hand & Body Peduli","PC","T",142.8915603198744,0,0,"In Progress"]
[20074075,"TESTING 56","Category Peduli Rambut","PC","T",0,null,null,null,20074075,"TESTING 56","Category Peduli Rambut","PC","T",0,0,"no buffer stock target","no buffer stock target"]
[20074080,"TESTING 57","Category Peduli Rambut","PC","T",0,null,null,null,20074080,"TESTING 57","Category Peduli Rambut","PC","T",0,0,"no buffer stock target","no buffer stock target"]
[20075079,"TESTING 136","Category Kondisioner Serat","Non-PC","T",3,6.2,null,null,20075079,"TESTING 136","Category Kondisioner Serat","Non-PC","T",3,6.2,2.0666666666666669,"Completed",null,"Big C","(All)"]
[20075080,"TESTING 137","Category Kondisioner Serat","Non-PC","T",2.5,5.19,null,null,20075080,"TESTING 137","Category Kondisioner Serat","Non-PC","T",2.5,5.19,2.0760000000000001,"Completed"]
[20075211,"TESTING 138","Category Kondisioner Serat","Non-PC","T",7,6.7,null,null,20075211,"TESTING 138","Category Kondisioner Serat","Non-PC","T",7,6.7,0.95714285714285718,"Completed",null,"Count of Status","Column Labels"]
[20075235,"TESTING 139","Category Kondisioner Serat","Non-PC","T",3,6.2,null,null,20075235,"TESTING 139","Category Kondisioner Serat","Non-PC","T",3,6.2,2.0666666666666669,"Completed",null,"Row Labels","Completed","In Progress","no buffer stock target","Grand Total"]
[20075237,"TESTING 140","Category Kondisioner Serat","Non-PC","T",5,5.23,null,null,20075237,"TESTING 140","Category Kondisioner Serat","Non-PC","T",5,5.23,1.046,"Completed",null,"Baby Care & Others",4,9,20,33]
[20086155,"TESTING 103","Category Bar Bareng","PC","M",105365.85365853658,194965.85365853657,null,null,20086155,"TESTING 103","Category Bar Bareng","PC","M",105365.85365853658,194965.85365853657,1.8503703703703702,"Completed",null,"Bango",20,7,6,33]
[20205679,"TESTING 58","Category Hand & Body Peduli","PC","KG",0,null,null,null,20205679,"TESTING 58","Category Hand & Body Peduli","PC","KG",0,0,"no buffer stock target","no buffer stock target",null,"Body",3,null,null,3]
[20205687,"TESTING 59","Category Hand & Body Peduli","PC","KG",0,null,null,null,20205687,"TESTING 59","Category Hand & Body Peduli","PC","KG",0,0,"no buffer stock target","no buffer stock target",null,"Deodorants & Fragrances",50,38,28,116]
[20205690,"TESTING 60","Category Hand & Body Peduli","PC","T",396.75858823529416,0,null,null,20205690,"TESTING 60","Category Hand & Body Peduli","PC","T",396.75858823529416,0,0,"In Progress",null,"Fabric Conditioners",17,1,28,46]
[20207104,"TESTING 193","Category Peduli Rambut","PC","T",14,15,null,null,20207104,"TESTING 193","Category Peduli Rambut","PC","T",14,15,1.0714285714285714,"Completed",null,"Fabrics Cleaning",22,25,34,81]
[20207105,"TESTING 194","Category Peduli Rambut","PC","T",14,15,null,null,20207105,"TESTING 194","Category Peduli Rambut","PC","T",14,15,1.0714285714285714,"Completed",null,"Face",77,33,89,199]
[20227725,"TESTING 61","Category Cair Cair PW","PC","KG",0,null,null,null,20227725,"TESTING 61","Category Cair Cair PW","PC","KG",0,0,"no buffer stock target","no buffer stock target",null,"HAIR CARE",37,30,58,125]
[20235325,"TESTING 29","Category Muka","PC","M",129600,153600,null,null,20235325,"TESTING 29","Category Muka","PC","M",129600,153600,1.1851851851851851,"Completed",null,"Hand & Body Care",12,20,11,43]
[20235326,"TESTING 30","Category Muka","PC","M",168000,576000,null,null,20235326,"TESTING 30","Category Muka","PC","M",168000,576000,3.4285714285714284,"Completed",null,"HOUSEHOLD CARE",2,13,37,52]
[20269437,"TESTING 195","Category Pelihara Mulut","PC","T",0,488,null,null,20269437,"TESTING 195","Category Pelihara Mulut","PC","T",0,488,"no buffer stock target","no buffer stock target",null,"ICE CREAM",15,1,13,29]
[20285561,"TESTING 62","Category Hand & Body Peduli","PC","T",36.298352941176461,0,null,null,20285561,"TESTING 62","Category Hand & Body Peduli","PC","T",36.298352941176461,0,0,"In Progress",null,"Leaf & Powder Tea",26,7,36,69]
[20288686,"TESTING 63","Category Aneka Kategori","Non-PC","KG",0,null,null,null,20288686,"TESTING 63","Category Aneka Kategori","Non-PC","KG",0,0,"no buffer stock target","no buffer stock target",null,"Multiple Categories",1,null,18,19]
[20295913,"TESTING 141","Category Kondisioner Serat","Non-PC","T",0,null,null,null,20295913,"TESTING 141","Category Kondisioner Serat","Non-PC","T",0,0,"no buffer stock target","no buffer stock target",null,"ORAL CARE",40,20,32,92]
[20298777,"TESTING 109","Category Daun dan Bubuk Teh","Non-PC","M",10500,28900,null,null,20298777,"TESTING 109","Category Daun dan Bubuk Teh","Non-PC","M",10500,28900,2.7523809523809524,"Completed",null,"PW Bar",29,20,10,59]
[21037332,"TESTING 240","Category Muka","PC","T",50,144,null,null,21037332,"TESTING 240","Category Muka","PC","T",50,144,2.88,"Completed",null,"PW Liquid",4,16,41,61]
[21037333,"TESTING 31","Category Muka","PC","T",0,0,null,null,21037333,"TESTING 31","Category Muka","PC","T",0,0,"no buffer stock target","no buffer stock target",null,"Royco",14,4,15,33]
[21037340,"TESTING 32","Category Muka","PC","T",0,0,null,null,21037340,"TESTING 32","Category Muka","PC","T",0,0,"no buffer stock target","no buffer stock target",null,"Spreads and Cooking Products",11,2,6,19]
[21070446,"TESTING 241","Category Fabrico Cleaner","Non-PC","T",100,205,null,null,21070446,"TESTING 241","Category Fabrico Cleaner","Non-PC","T",100,205,2.0499999999999998,"Completed",null,"Grand Total",384,246,482,1112]
[21071674,"TESTING 142","Category Kondisioner Serat","Non-PC","T",2.5,5.01,null,null,21071674,"TESTING 142","Category Kondisioner Serat","Non-PC","T",2.5,5.01,2.004,"Completed"]
[21072071,"TESTING 28","Category Cair Cair PW","PC","T",112,276,null,null,21072071,"TESTING 28","Category Cair Cair PW","PC","T",112,276,2.4642857142857144,"Completed"]
[21074502,"TESTING 209","Category Pelihara Mulut","PC","T",61.200823529411764,21.050999999999998,null,null,21074502,"TESTING 209","Category Pelihara Mulut","PC","T",61.200823529411764,21.050999999999998,0.34396595970450222,"In Progress"]
[21075139,"TESTING 143","Category Fabrico Cleaner","Non-PC","T",0,null,null,null,21075139,"TESTING 143","Category Fabrico Cleaner","Non-PC","T",0,0,"no buffer stock target","no buffer stock target"]
[21075273,"TESTING 210","Category Pelihara Mulut","PC","T",184.957705882353,359.178,null,null,21075273,"TESTING 210","Category Pelihara Mulut","PC","T",184.957705882353,359.178,1.9419466644361614,"Completed"]
[21075288,"TESTING 144","Category Fabrico Cleaner","Non-PC","T",13.9019967577582,14.29,null,null,21075288,"TESTING 144","Category Fabrico Cleaner","Non-PC","T",13.9019967577582,14.29,1.0279098930177255,"Completed"]
[21075289,"TESTING 145","Category Fabrico Cleaner","Non-PC","T",19.3748247592778,19.45,null,null,21075289,"TESTING 145","Category Fabrico Cleaner","Non-PC","T",19.3748247592778,19.45,1.0038800475181693,"Completed"]
[21075828,"TESTING 146","Category Peduli Rumah Tangga","Non-PC","T",0,null,null,null,21075828,"TESTING 146","Category Peduli Rumah Tangga","Non-PC","T",0,0,"no buffer stock target","no buffer stock target"]
[21135205,"TESTING 147","Category Fabrico Cleaner","Non-PC","T",0,null,null,null,21135205,"TESTING 147","Category Fabrico Cleaner","Non-PC","T",0,0,"no buffer stock target","no buffer stock target"]
[21135206,"TESTING 148","Category Fabrico Cleaner","Non-PC","T",0,null,null,null,21135206,"TESTING 148","Category Fabrico Cleaner","Non-PC","T",0,0,"no buffer stock target","no buffer stock target"]
[21138450,"TESTING 149","Category Fabrico Cleaner","Non-PC","T",0,null,null,null,21138450,"TESTING 149","Category Fabrico Cleaner","Non-PC","T",0,0,"no buffer stock target","no buffer stock target"]
[21138459,"TESTING 150","Category Fabrico Cleaner","Non-PC","T",3,6.17,null,null,21138459,"TESTING 150","Category Fabrico Cleaner","Non-PC","T",3,6.17,2.0566666666666666,"Completed"]
[21138464,"TESTING 151","Category Fabrico Cleaner","Non-PC","T",0,null,null,null,21138464,"TESTING 151","Category Fabrico Cleaner","Non-PC","T",0,0,"no buffer stock target","no buffer stock target"]
[21139000,"TESTING 211","Category Pelihara Mulut","PC","T",0,840,null,null,21139000,"TESTING 211","Category Pelihara Mulut","PC","T",0,840,"no buffer stock target","no buffer stock target"]
[21139027,"TESTING 33","Category Muka","PC","M",62400,9600,null,null,21139027,"TESTING 33","Category Muka","PC","M",62400,9600,0.15384615384615385,"In Progress"]
[21140526,"TESTING 152","Category Kondisioner Serat","Non-PC","T",0,null,null,null,21140526,"TESTING 152","Category Kondisioner Serat","Non-PC","T",0,0,"no buffer stock target","no buffer stock target"]
[21140527,"TESTING 153","Category Kondisioner Serat","Non-PC","T",0,null,null,null,21140527,"TESTING 153","Category Kondisioner Serat","Non-PC","T",0,0,"no buffer stock target","no buffer stock target"]
[21143282,"TESTING 154","Category Fabrico Cleaner","Non-PC","T",0,null,null,null,21143282,"TESTING 154","Category Fabrico Cleaner","Non-PC","T",0,0,"no buffer stock target","no buffer stock target"]
[21145375,"TESTING 64","Category Peduli Rambut","PC","T",127.872,0,null,null,21145375,"TESTING 64","Category Peduli Rambut","PC","T",127.872,0,0,"In Progress"]
[21149159,"TESTING 181","Category Kondisioner Serat","Non-PC","T",0,null,null,null,21149159,"TESTING 181","Category Kondisioner Serat","Non-PC","T",0,0,"no buffer stock target","no buffer stock target"]
[21150299,"TESTING 01","Category Baby Baby","PC","M",24000,53000,null,null,21150299,"TESTING 01",{"$f":"C54","v":"Category Baby Baby"},"PC","M",24000,53000,2.2083333333333335,"Completed"]
[21150302,"TESTING 02","Category Baby Baby","PC","M",24000,36000,null,null,{"$f":"A55","v":21150302},"TESTING 02","Category Baby Baby","PC","M",24000,36000,1.5,"Completed"]
[21152885,"TESTING 03","Category Baby Baby","PC","M",24000,95000,null,null,21152885,"TESTING 03","Category Baby Baby","PC","M",24000,95000,3.9583333333333335,"Completed"]
[21152887,"TESTING 04","Category Baby Baby","PC","M",24000,16000,null,null,21152887,"TESTING 04","Category Baby Baby","PC","M",24000,16000,0.66666666666666663,"In Progress"]
[21154381,"TESTING 196","Category Muka","PC","T",0,null,null,null,21154381,"TESTING 196","Category Muka","PC","T",0,0,"no buffer stock target","no buffer stock target"]
[21154382,"TESTING 197","Category Muka","PC","T",0,null,null,null,21154382,"TESTING 197","Category Muka","PC","T",0,0,"no buffer stock target","no buffer stock target"]
[21182054,"TESTING 104","Category Bar Bareng","PC","M",383442.26579520694,524242.26579520694,null,null,21182054,"TESTING 104","Category Bar Bareng","PC","M",383442.26579520694,524242.26579520694,1.3672,"Completed"]
[21182147,"TESTING 110","Category Daun dan Bubuk Teh","Non-PC","T",23000,48804,null,null,21182147,"TESTING 110","Category Daun dan Bubuk Teh","Non-PC","T",23000,48804,2.1219130434782607,"Completed"]
[21185682,"TESTING 155","Category Cair Cair PW","PC","T",1,1.05,null,null,21185682,"TESTING 155","Category Cair Cair PW","PC","T",1,1.05,1.05,"Completed"]
[21185717,"TESTING 65","Category Hand & Body Peduli","PC","KG",0,null,null,null,21185717,"TESTING 65","Category Hand & Body Peduli","PC","KG",0,0,"no buffer stock target","no buffer stock target"]
[21188579,"TESTING 156","Category Kondisioner Serat","Non-PC","T",0,null,null,null,21188579,"TESTING 156","Category Kondisioner Serat","Non-PC","T",0,0,"no buffer stock target","no buffer stock target"]
[21189043,"TESTING 242","Category Muka","PC","T",100,320,null,null,21189043,"TESTING 242","Category Muka","PC","T",100,320,3.2,"Completed"]
[21189044,"TESTING 34","Category Muka","PC","M",5700,50400,null,null,21189044,"TESTING 34","Category Muka","PC","M",5700,50400,8.8421052631578956,"Completed"]
[62108478,"TESTING 48","Category Kecap No 1","Non-PC","KG",147.27000000000001,0,null,null,62108478,"TESTING 48","Category Kecap No 1","Non-PC","KG",147.27000000000001,0,0,"In Progress"]
[62108911,"TESTING 66","Category Kecap No 1","Non-PC","T",642,0,null,null,62108911,"TESTING 66","Category Kecap No 1","Non-PC","T",642,0,0,"In Progress"]
[62138001,"TESTING 49","Category Aneka Kategori","Non-PC","KG",0,null,null,null,62138001,"TESTING 49","Category Aneka Kategori","Non-PC","KG",0,0,{"$f":"IF(O69=0,\"no buffer stock target\",IFERROR(P69/O69,\"NA\"))","v":"no buffer stock target"},{"$f":"IF(Q69=\"no buffer stock target\",\"no buffer stock target\",(IF(Q69>=80%,\"Completed\",\"In Progress\")))","v":"no buffer stock target"}]
[62138128,"TESTING 50","Category Aneka Kategori","Non-PC","KG",0,null,null,null,62138128,"TESTING 50","Category Aneka Kategori","Non-PC","KG",0,0,"no buffer stock target","no buffer stock target"]
[62138166,"TESTING 105","Category Bar Bareng","PC","M",287910.38550914614,947910.38550914614,null,null,62138166,"TESTING 105","Category Bar Bareng","PC","M",287910.38550914614,947910.38550914614,3.2923799668874172,"Completed"]
[62138174,"TESTING 106","Category Bar Bareng","PC","M",324988.92912032088,596588.92912032083,null,null,62138174,"TESTING 106","Category Bar Bareng","PC","M",324988.92912032088,596588.92912032083,1.8357207758897081,"Completed"]
[62145959,"TESTING 35","Category Pelihara Mulut","PC","M",480000,1255200,null,null,62145959,"TESTING 35","Category Pelihara Mulut","PC","M",480000,1255200,2.6150000000000002,"Completed"]
[62176898,"TESTING 67","Category Aneka Kategori","Non-PC","KG",0,null,null,null,62176898,"TESTING 67","Category Aneka Kategori","Non-PC","KG",0,0,"no buffer stock target","no buffer stock target"]
[62178498,"TESTING 36","Category Muka","PC","M",194400,460800,null,null,62178498,"TESTING 36","Category Muka","PC","M",194400,460800,2.3703703703703702,"Completed"]
[62178511,"TESTING 37","Category Muka","PC","M",85100,0,null,null,62178511,"TESTING 37","Category Muka","PC","M",85100,0,0,"In Progress"]
[62179445,"TESTING 68","Category Aneka Kategori","Non-PC","KG",0,null,null,null,62179445,"TESTING 68","Category Aneka Kategori","Non-PC","KG",0,0,"no buffer stock target","no buffer stock target"]
[62179446,"TESTING 69","Category Aneka Kategori","Non-PC","KG",0,null,null,null,62179446,"TESTING 69","Category Aneka Kategori","Non-PC","KG",0,0,"no buffer stock target","no buffer stock target"]
[62179863,"TESTING 38","Category Pelihara Mulut","PC","M",192000,336000,null,null,62179863,"TESTING 38","Category Pelihara Mulut","PC","M",192000,336000,1.75,"Completed"]
[62179867,"TESTING 39","Category Pelihara Mulut","PC","M",72000,340800,null,null,62179867,"TESTING 39","Category Pelihara Mulut","PC","M",72000,340800,4.7333333333333334,"Completed"]
[62179868,"TESTING 40","Category Pelihara Mulut","PC","M",124800,76800,null,null,62179868,"TESTING 40","Category Pelihara Mulut","PC","M",124800,76800,0.61538461538461542,"In Progress"]
[62876704,"TESTING 157","Category Fabrico Cleaner","Non-PC","T",0.81,1.67,null,null,62876704,"TESTING 157","Category Fabrico Cleaner","Non-PC","T",0.81,1.67,2.0617283950617282,"Completed"]
[62878109,"TESTING 212","Category Pelihara Mulut","PC","T",186.63276470588235,389.22300000000001,null,null,62878109,"TESTING 212","Category Pelihara Mulut","PC","T",186.63276470588235,389.22300000000001,2.0855019782479403,"Completed"]
[62878112,"TESTING 213","Category Pelihara Mulut","PC","T",146.88252941176472,582.89800000000002,null,null,62878112,"TESTING 213","Category Pelihara Mulut","PC","T",146.88252941176472,582.89800000000002,3.9684637943967225,"Completed"]
[62888335,"TESTING 107","Category Bar Bareng","PC","M",720263.5914332784,918263.5914332784,null,null,62888335,"TESTING 107","Category Bar Bareng","PC","M",720263.5914332784,918263.5914332784,1.2748993595608418,"Completed"]
[62888461,"TESTING 198","Category Peduli Rambut","PC","T",120,120,null,null,62888461,"TESTING 198","Category Peduli Rambut","PC","T",120,120,1,"Completed"]
[62888482,"TESTING 199","Category Muka","PC","T",180,180,null,null,{"$f":"A87","v":62888482},"TESTING 199","Category Muka","PC","T",180,180,1,"Completed"]
[62888804,"TESTING 70","Category Bau Badan","PC","T",600,0,null,null,62888804,"TESTING 70","Category Bau Badan","PC","T",600,0,0,"In Progress"]
[67007478,"TESTING 243","Category Bau Badan","PC","T",150,150,null,null,67007478,"TESTING 243","Category Bau Badan","PC","T",150,150,1,"Completed"]
[67007480,"TESTING 244","Category Bau Badan","PC","T",0,0,null,null,67007480,"TESTING 244","Category Bau Badan","PC","T",0,0,"no buffer stock target","no buffer stock target"]
[67007482,"TESTING 245","Category Bau Badan","PC","T",0,0,null,null,67007482,"TESTING 245","Category Bau Badan","PC","T",0,0,"no buffer stock target","no buffer stock target"]
[67007484,"TESTING 246","Category Bau Badan","PC","T",150,210,null,null,67007484,"TESTING 246","Category Bau Badan","PC","T",150,210,1.4,"Completed"]
[67008388,"TESTING 247","Category Bau Badan","PC","T",0,0,null,null,67008388,"TESTING 247","Category Bau Badan","PC","T",0,0,"no buffer stock target","no buffer stock target"]
[67008390,"TESTING 248","Category Bau Badan","PC","T",300,440,null,null,67008390,"TESTING 248","Category Bau Badan","PC","T",300,440,1.4666666666666666,"Completed"]
[67008404,"TESTING 249","Category Bau Badan","PC","T",300,340,null,null,67008404,"TESTING 249","Category Bau Badan","PC","T",300,340,1.1333333333333333,"Completed"]
[67008408,"TESTING 250","Category Bau Badan","PC","T",0,0,null,null,67008408,"TESTING 250","Category Bau Badan","PC","T",0,0,"no buffer stock target","no buffer stock target"]
[67008412,"TESTING 251","Category Bau Badan","PC","T",500,1120,null,null,67008412,"TESTING 251","Category Bau Badan","PC","T",500,1120,2.2400000000000002,"Completed"]
[67008414,"TESTING 252","Category Bau Badan","PC","T",0,0,null,null,67008414,"TESTING 252","Category Bau Badan","PC","T",0,0,"no buffer stock target","no buffer stock target"]
[67008416,"TESTING 253","Category Bau Badan","PC","T",250,620,null,null,67008416,"TESTING 253","Category Bau Badan","PC","T",250,620,2.48,"Completed"]
[67008418,"TESTING 254","Category Bau Badan","PC","T",250,270,null,null,67008418,"TESTING 254","Category Bau Badan","PC","T",250,270,1.08,"Completed"]
[67008426,"TESTING 255","Category Bau Badan","PC","T",0,0,null,null,67008426,"TESTING 255","Category Bau Badan","PC","T",0,0,"no buffer stock target","no buffer stock target"]
[67008434,"TESTING 256","Category Bau Badan","PC","T",0,0,null,null,67008434,"TESTING 256","Category Bau Badan","PC","T",0,0,"no buffer stock target","no buffer stock target"]
[67008436,"TESTING 257","Category Bau Badan","PC","T",0,0,null,null,67008436,"TESTING 257","Category Bau Badan","PC","T",0,0,"no buffer stock target","no buffer stock target"]
[67008477,"TESTING 258","Category Bau Badan","PC","T",150,300,null,null,67008477,"TESTING 258","Category Bau Badan","PC","T",150,300,2,"Completed"]
[67008479,"TESTING 259","Category Bau Badan","PC","T",300,410,null,null,67008479,"TESTING 259","Category Bau Badan","PC","T",300,410,1.3666666666666667,"Completed"]
[67008481,"TESTING 260","Category Bau Badan","PC","T",0,0,null,null,67008481,"TESTING 260","Category Bau Badan","PC","T",0,0,"no buffer stock target","no buffer stock target"]
[67008483,"TESTING 261","Category Bau Badan","PC","T",250,590,null,null,67008483,"TESTING 261","Category Bau Badan","PC","T",250,590,2.36,"Completed"]
[67008485,"TESTING 262","Category Bau Badan","PC","T",0,0,null,null,67008485,"TESTING 262","Category Bau Badan","PC","T",0,0,"no buffer stock target","no buffer stock target"]
[67008491,"TESTING 263","Category Bau Badan","PC","T",0,0,null,null,67008491,"TESTING 263","Category Bau Badan","PC","T",0,0,"no buffer stock target","no buffer stock target"]
[67008495,"TESTING 264","Category Bau Badan","PC","T",150,290,null,null,67008495,"TESTING 264","Category Bau Badan","PC","T",150,290,1.9333333333333333,"Completed"]
[67008497,"TESTING 265","Category Bau Badan","PC","T",300,350,null,null,67008497,"TESTING 265","Category Bau Badan","PC","T",300,350,1.1666666666666667,"Completed"]
[67008501,"TESTING 266","Category Bau Badan","PC","T",0,0,null,null,67008501,"TESTING 266","Category Bau Badan","PC","T",0,0,"no buffer stock target","no buffer stock target"]
[67008504,"TESTING 267","Category Bau Badan","PC","T",150,0,null,null,67008504,"TESTING 267","Category Bau Badan","PC","T",150,0,0,"In Progress"]
[67008506,"TESTING 268","Category Bau Badan","PC","T",0,0,null,null,67008506,"TESTING 268","Category Bau Badan","PC","T",0,0,"no buffer stock target","no buffer stock target"]
[67008510,"TESTING 269","Category Bau Badan","PC","T",750,1230,null,null,67008510,"TESTING 269","Category Bau Badan","PC","T",750,1230,1.64,"Completed"]
[67008512,"TESTING 270","Category Bau Badan","PC","T",800,1180,null,null,67008512,"TESTING 270","Category Bau Badan","PC","T",800,1180,1.4750000000000001,"Completed"]
[67012293,"TESTING 71","Category Aneka Kategori","Non-PC","KG",0,null,null,null,67012293,"TESTING 71","Category Aneka Kategori","Non-PC","KG",0,0,"no buffer stock target","no buffer stock target"]
[67014067,"TESTING 72","Category Peduli Rambut","PC","KG",0,null,null,null,67014067,"TESTING 72","Category Peduli Rambut","PC","KG",0,0,"no buffer stock target","no buffer stock target"]
[67014189,"TESTING 200","Category Cair Cair PW","PC","T",0,null,null,null,{"$f":"A119","v":67014189},"TESTING 200","Category Cair Cair PW","PC","T",0,0,"no buffer stock target","no buffer stock target"]
[67015448,"TESTING 111","Category Daun dan Bubuk Teh","Non-PC","T",151300,307300,null,null,67015448,"TESTING 111","Category Daun dan Bubuk Teh","Non-PC","T",151300,307300,2.0310641110376735,"Completed"]
[67018102,"TESTING 271","Category Bau Badan","PC","T",150,200,null,null,67018102,"TESTING 271","Category Bau Badan","PC","T",150,200,1.3333333333333333,"Completed"]
[67019746,"TESTING 73","Category Hand & Body Peduli","PC","T",200,0,null,null,67019746,"TESTING 73","Category Hand & Body Peduli","PC","T",200,0,0,"In Progress"]
[67019812,"TESTING 74","Category Hand & Body Peduli","PC","T",150,0,null,null,67019812,"TESTING 74","Category Hand & Body Peduli","PC","T",150,0,0,"In Progress"]
[67019816,"TESTING 75","Category Hand & Body Peduli","PC","T",61,0,null,null,67019816,"TESTING 75","Category Hand & Body Peduli","PC","T",61,0,0,"In Progress"]
[67019830,"TESTING 76","Category Hand & Body Peduli","PC","T",300,0,null,null,67019830,"TESTING 76","Category Hand & Body Peduli","PC","T",300,0,0,"In Progress"]
[67019836,"TESTING 77","Category Hand & Body Peduli","PC","T",106,0,null,null,67019836,"TESTING 77","Category Hand & Body Peduli","PC","T",106,0,0,"In Progress"]
[67019840,"TESTING 78","Category Hand & Body Peduli","PC","T",300,0,null,null,67019840,"TESTING 78","Category Hand & Body Peduli","PC","T",300,0,0,"In Progress"]
[67019861,"TESTING 79","Category Peduli Rambut","PC","T",58.800000000000004,0,null,null,67019861,"TESTING 79","Category Peduli Rambut","PC","T",58.800000000000004,0,0,"In Progress"]
[67019888,"TESTING 80","Category Peduli Rambut","PC","T",58.800000000000004,0,null,null,67019888,"TESTING 80","Category Peduli Rambut","PC","T",58.800000000000004,0,0,"In Progress"]
[67020427,"TESTING 81","Category Peduli Rambut","PC","T",28.8,0,null,null,67020427,"TESTING 81","Category Peduli Rambut","PC","T",28.8,0,0,"In Progress"]
[67021739,"TESTING 158","Category Peduli Rumah Tangga","Non-PC","T",47.982506704650397,0,null,null,67021739,"TESTING 158","Category Peduli Rumah Tangga","Non-PC","T",47.982506704650397,0,0,"In Progress"]
[67024051,"TESTING 82","Category Peduli Rambut","PC","T",58.800000000000004,0,null,null,67024051,"TESTING 82","Category Peduli Rambut","PC","T",58.800000000000004,0,0,"In Progress"]
[67027619,"TESTING 05","Category Baby Baby","PC","M",24000,4000,null,null,67027619,"TESTING 05","Category Baby Baby","PC","M",24000,4000,{"$f":"IF(O133=0,\"no buffer stock target\",IFERROR(P133/O133,\"NA\"))","v":0.16666666666666666},{"$f":"IF(Q133=\"no buffer stock target\",\"no buffer stock target\",(IF(Q133>=80%,\"Completed\",\"In Progress\")))","v":"In Progress"}]
[67030051,"TESTING 83","Category Hand & Body Peduli","PC","T",281.0897592607871,0,null,null,67030051,"TESTING 83","Category Hand & Body Peduli","PC","T",281.0897592607871,0,0,"In Progress"]
[67030055,"TESTING 84","Category Hand & Body Peduli","PC","T",463.29811044867472,0,null,null,67030055,"TESTING 84","Category Hand & Body Peduli","PC","T",463.29811044867472,0,0,"In Progress"]
[67030059,"TESTING 85","Category Hand & Body Peduli","PC","T",499.02952941176471,0,null,null,67030059,"TESTING 85","Category Hand & Body Peduli","PC","T",499.02952941176471,0,0,"In Progress"]
[67032707,"TESTING 214","Category Muka","PC","T",0,0,null,null,67032707,"TESTING 214","Category Muka","PC","T",0,0,"no buffer stock target","no buffer stock target"]
[67032925,"TESTING 159","Category Fabrico Cleaner","Non-PC","T",0,null,null,null,67032925,"TESTING 159","Category Fabrico Cleaner","Non-PC","T",0,0,"no buffer stock target","no buffer stock target"]
[67041434,"TESTING 86","Category Peduli Rambut","PC","T",111.60000000000001,0,null,null,67041434,"TESTING 86","Category Peduli Rambut","PC","T",111.60000000000001,0,0,"In Progress"]
[67041488,"TESTING 87","Category Peduli Rambut","PC","T",0,null,null,null,67041488,"TESTING 87","Category Peduli Rambut","PC","T",0,0,"no buffer stock target","no buffer stock target"]
[67043570,"TESTING 88","Category Cair Cair PW","PC","T",84,0,null,null,67043570,"TESTING 88","Category Cair Cair PW","PC","T",84,0,0,"In Progress"]
[67043572,"TESTING 89","Category Cair Cair PW","PC","T",29,0,null,null,67043572,"TESTING 89","Category Cair Cair PW","PC","T",29,0,0,"In Progress"]
[67043590,"TESTING 90","Category Cair Cair PW","PC","T",18,0,null,null,67043590,"TESTING 90","Category Cair Cair PW","PC","T",18,0,0,"In Progress"]
[67043592,"TESTING 91","Category Cair Cair PW","PC","T",18,0,null,null,67043592,"TESTING 91","Category Cair Cair PW","PC","T",18,0,0,"In Progress"]
[67044831,"TESTING 215","Category Muka","PC","T",0,null,null,null,67044831,"TESTING 215","Category Muka","PC","T",0,0,"no buffer stock target","no buffer stock target"]
[67044833,"TESTING 216","Category Muka","PC","T",0,null,null,null,67044833,"TESTING 216","Category Muka","PC","T",0,0,"no buffer stock target","no buffer stock target"]
[67044890,"TESTING 217","Category Muka","PC","T",0,null,null,null,67044890,"TESTING 217","Category Muka","PC","T",0,0,"no buffer stock target","no buffer stock target"]
[67045403,"TESTING 92","Category Peduli Rambut","PC","T",58.800000000000004,0,null,null,67045403,"TESTING 92","Category Peduli Rambut","PC","T",58.800000000000004,0,0,"In Progress"]
[67048538,"TESTING 160","Category Fabrico Cleaner","Non-PC","T",0,null,null,null,67048538,"TESTING 160","Category Fabrico Cleaner","Non-PC","T",0,0,"no buffer stock target","no buffer stock target"]
[67054396,"TESTING 161","Category Kondisioner Serat","Non-PC","T",0,null,null,null,67054396,"TESTING 161","Category Kondisioner Serat","Non-PC","T",0,0,"no buffer stock target","no buffer stock target"]
[67057356,"TESTING 162","Category Kondisioner Serat","Non-PC","T",0,null,null,null,67057356,"TESTING 162","Category Kondisioner Serat","Non-PC","T",0,0,"no buffer stock target","no buffer stock target"]
[67057376,"TESTING 163","Category Kondisioner Serat","Non-PC","T",0,null,null,null,67057376,"TESTING 163","Category Kondisioner Serat","Non-PC","T",0,0,"no buffer stock target","no buffer stock target"]
[67058433,"TESTING 201","Category Pelihara Mulut","PC","T",960.87,1200,null,null,67058433,"TESTING 201","Category Pelihara Mulut","PC","T",960.87,1200,1.2488682131818041,"Completed"]
[67058438,"TESTING 218","Category Pelihara Mulut","PC","T",528,1391.3710000000001,null,null,67058438,"TESTING 218","Category Pelihara Mulut","PC","T",528,1391.3710000000001,2.6351723484848488,"Completed"]
[67058444,"TESTING 219","Category Pelihara Mulut","PC","T",525,979.16099999999994,null,null,67058444,"TESTING 219","Category Pelihara Mulut",{"$f":"D155","v":"PC"},"T",525,979.16099999999994,1.8650685714285713,"Completed"]
[67058455,"TESTING 202","Category Pelihara Mulut","PC","T",317.05,868,null,null,{"$f":"A156","v":67058455},"TESTING 202","Category Pelihara Mulut","PC","T",317.05,868,2.7377385270462069,"Completed"]
[67058457,"TESTING 220","Category Pelihara Mulut","PC","T",138.27447790691772,359.33199999999999,null,null,67058457,"TESTING 220","Category Pelihara Mulut","PC","T",138.27447790691772,359.33199999999999,2.5986863623661023,"Completed"]
[67058461,"TESTING 203","Category Pelihara Mulut","PC","T",0,552.4,null,null,67058461,"TESTING 203","Category Pelihara Mulut","PC","T",0,552.4,"no buffer stock target","no buffer stock target"]
[67058463,"TESTING 221","Category Pelihara Mulut","PC","T",190.55938651062522,834.74599999999998,null,null,67058463,"TESTING 221","Category Pelihara Mulut","PC","T",190.55938651062522,834.74599999999998,4.38050318740639,"Completed"]
[67058468,"TESTING 204","Category Pelihara Mulut","PC","T",0,46.4,null,null,67058468,"TESTING 204","Category Pelihara Mulut","PC","T",0,46.4,"no buffer stock target","no buffer stock target"]
[67059288,"TESTING 222","Category Muka","PC","T",90,308.36,null,null,67059288,"TESTING 222","Category Muka","PC","T",90,308.36,3.4262222222222225,"Completed"]
[67059294,"TESTING 223","Category Muka","PC","T",84,213.85,null,null,67059294,"TESTING 223","Category Muka","PC","T",84,213.85,2.5458333333333334,"Completed"]
[67059300,"TESTING 224","Category Muka","PC","T",120,0,null,null,67059300,"TESTING 224","Category Muka","PC","T",120,0,0,"In Progress"]
[67065980,"TESTING 164","Category Peduli Rumah Tangga","Non-PC","T",85.395294611404097,0,null,null,67065980,"TESTING 164","Category Peduli Rumah Tangga","Non-PC","T",85.395294611404097,0,0,"In Progress"]
[67067127,"TESTING 165","Category Fabrico Cleaner","Non-PC","T",0,null,null,null,67067127,"TESTING 165","Category Fabrico Cleaner","Non-PC","T",0,0,"no buffer stock target","no buffer stock target"]
[67067550,"TESTING 41","Category Muka","PC","T",0,null,null,null,67067550,"TESTING 41","Category Muka","PC","T",0,0,"no buffer stock target","no buffer stock target"]
[67067568,"TESTING 42","Category Muka","PC","T",0,null,null,null,67067568,"TESTING 42","Category Muka","PC","T",0,0,"no buffer stock target","no buffer stock target"]
[67067582,"TESTING 43","Category Muka","PC","T",0,null,null,null,67067582,"TESTING 43","Category Muka","PC","T",0,0,"no buffer stock target","no buffer stock target"]
[67070194,"TESTING 272","Category Bau Badan","PC","T",300,450,null,null,67070194,"TESTING 272","Category Bau Badan","PC","T",300,450,1.5,"Completed"]
[67074839,"TESTING 93","Category Peduli Rambut","PC","T",111.6,0,null,null,67074839,"TESTING 93","Category Peduli Rambut","PC","T",111.6,0,0,"In Progress"]
[67074845,"TESTING 94","Category Peduli Rambut","PC","T",134.4,0,null,null,67074845,"TESTING 94","Category Peduli Rambut","PC","T",134.4,0,0,"In Progress"]
[67074851,"TESTING 95","Category Peduli Rambut","PC","T",55.800000000000004,0,null,null,67074851,"TESTING 95","Category Peduli Rambut","PC","T",55.800000000000004,0,0,"In Progress"]
[67074876,"TESTING 96","Category Peduli Rambut","PC","T",134.4,0,null,null,67074876,"TESTING 96","Category Peduli Rambut","PC","T",134.4,0,0,"In Progress"]
[67074911,"TESTING 97","Category Peduli Rambut","PC","T",111.6,0,null,null,67074911,"TESTING 97","Category Peduli Rambut","PC","T",111.6,0,0,"In Progress"]
[67074924,"TESTING 98","Category Peduli Rambut","PC","T",55.800000000000004,0,null,null,67074924,"TESTING 98","Category Peduli Rambut","PC","T",55.800000000000004,0,0,"In Progress"]
[67077587,"TESTING 225","Category Pelihara Mulut","PC","T",394.58700000000016,280.29700000000003,null,null,67077587,"TESTING 225","Category Pelihara Mulut","PC","T",394.58700000000016,280.29700000000003,0.71035538423718958,"In Progress"]
[67077591,"TESTING 226","Category Pelihara Mulut","PC","T",348.75900000000001,186252,null,null,67077591,"TESTING 226","Category Pelihara Mulut","PC","T",348.75900000000001,186252,534.0421322460495,"Completed"]
[67077595,"TESTING 227","Category Pelihara Mulut","PC","T",366.11999999999995,689.423,null,null,67077595,"TESTING 227","Category Pelihara Mulut","PC","T",366.11999999999995,689.423,1.8830520048071673,"Completed"]
[67079467,"TESTING 12","Category Muka","PC","T",0,null,null,null,67079467,"TESTING 12","Category Muka","PC","T",0,0,"no buffer stock target","no buffer stock target"]
[67079471,"TESTING 13","Category Muka","PC","T",80,null,null,null,67079471,"TESTING 13","Category Muka","PC","T",80,0,0,"In Progress"]
[67079473,"TESTING 14","Category Muka","PC","T",13.2,null,null,null,67079473,"TESTING 14","Category Muka","PC","T",13.2,0,0,"In Progress"]
[67079487,"TESTING 273","Category Muka","PC","T",120,150,null,null,67079487,"TESTING 273","Category Muka","PC","T",120,150,1.25,"Completed"]
[67081078,"TESTING 205","Category Pelihara Mulut","PC","T",0,null,null,null,67081078,"TESTING 205","Category Pelihara Mulut","PC","T",0,0,"no buffer stock target","no buffer stock target"]
[67082187,"TESTING 166","Category Fabrico Cleaner","Non-PC","T",1,2.15,null,null,67082187,"TESTING 166","Category Fabrico Cleaner","Non-PC","T",1,2.15,2.15,"Completed"]
[67082787,"TESTING 108","Category Aneka Kategori","Non-PC","M",336438.92,588438.91999999993,null,null,67082787,"TESTING 108","Category Aneka Kategori","Non-PC","M",336438.92,588438.91999999993,1.7490215460208942,"Completed"]
[67089803,"TESTING 99","Category Peduli Rambut","PC","T",58.800000000000004,0,null,null,67089803,"TESTING 99","Category Peduli Rambut","PC","T",58.800000000000004,0,0,"In Progress"]
[67096075,"TESTING 167","Category Fabrico Cleaner","Non-PC","T",0,null,null,null,67096075,"TESTING 167","Category Fabrico Cleaner","Non-PC","T",0,0,"no buffer stock target","no buffer stock target"]
[67098479,"TESTING 112","Category Daun dan Bubuk Teh","Non-PC","T",2667,9920,null,null,67098479,"TESTING 112","Category Daun dan Bubuk Teh","Non-PC","T",2667,9920,3.7195350581177351,"Completed"]
[67099447,"TESTING 228","Category Pelihara Mulut","PC","T",2361,2991.4079999999999,null,null,67099447,"TESTING 228","Category Pelihara Mulut","PC","T",2361,2991.4079999999999,1.2670088945362135,"Completed"]
[67102739,"TESTING 44","Category Muka","PC","T",0,null,null,null,67102739,"TESTING 44","Category Muka","PC","T",0,0,"no buffer stock target","no buffer stock target"]
[67106976,"TESTING 229","Category Muka","PC","T",120,823.005,null,null,67106976,"TESTING 229","Category Muka","PC","T",120,823.005,6.8583749999999997,"Completed"]
[67106980,"TESTING 230","Category Muka","PC","T",120,1045.605,null,null,67106980,"TESTING 230","Category Muka","PC","T",120,1045.605,8.713375000000001,"Completed"]
[67117229,"TESTING 274","Category Bau Badan","PC","T",0,50,null,null,67117229,"TESTING 274","Category Bau Badan","PC","T",0,50,"no buffer stock target","no buffer stock target"]
[67117232,"TESTING 275","Category Bau Badan","PC","T",0,0,null,null,67117232,"TESTING 275","Category Bau Badan","PC","T",0,0,"no buffer stock target","no buffer stock target"]
[67117913,"TESTING 113","Category Daun dan Bubuk Teh","Non-PC","T",0,null,null,null,67117913,"TESTING 113","Category Daun dan Bubuk Teh","Non-PC","T",0,0,"no buffer stock target","no buffer stock target"]
[67117917,"TESTING 116","Category Daun dan Bubuk Teh","Non-PC","T",0,null,null,null,67117917,"TESTING 116","Category Daun dan Bubuk Teh","Non-PC","T",0,0,"no buffer stock target","no buffer stock target"]
[67117928,"TESTING 231","Category Pelihara Mulut","PC","T",121.71683759441494,482.68299999999999,null,null,67117928,"TESTING 231","Category Pelihara Mulut","PC","T",121.71683759441494,482.68299999999999,{"$f":"IF(O197=0,\"no buffer stock target\",IFERROR(P197/O197,\"NA\"))","v":3.965622255224845},{"$f":"IF(Q197=\"no buffer stock target\",\"no buffer stock target\",(IF(Q197>=80%,\"Completed\",\"In Progress\")))","v":"Completed"}]
[67117930,"TESTING 232","Category Pelihara Mulut","PC","T",180,611.15599999999995,null,null,67117930,"TESTING 232","Category Pelihara Mulut","PC","T",180,611.15599999999995,3.3953111111111109,"Completed"]
[67117935,"TESTING 233","Category Pelihara Mulut","PC","T",210,720.83699999999999,null,null,67117935,"TESTING 233","Category Pelihara Mulut","PC","T",210,720.83699999999999,3.4325571428571426,"Completed"]
[67117937,"TESTING 206","Category Pelihara Mulut","PC","T",106.04524886877834,762.5,null,null,67117937,"TESTING 206","Category Pelihara Mulut","PC","T",106.04524886877834,762.5,7.1903268475849078,"Completed"]
[67117939,"TESTING 207","Category Pelihara Mulut","PC","T",0,776,null,null,67117939,"TESTING 207","Category Pelihara Mulut","PC","T",0,776,"no buffer stock target","no buffer stock target"]
[67117941,"TESTING 208","Category Pelihara Mulut","PC","T",356.46760698596376,723.4,null,null,67117941,"TESTING 208","Category Pelihara Mulut","PC","T",356.46760698596376,723.4,2.0293569059936618,"Completed"]
[67117976,"TESTING 114","Category Daun dan Bubuk Teh","Non-PC","T",0,0,null,null,67117976,"TESTING 114","Category Daun dan Bubuk Teh","Non-PC","T",0,0,"no buffer stock target","no buffer stock target"]
[67118178,"TESTING 168","Category Kondisioner Serat","Non-PC","T",35,35.28,null,null,67118178,"TESTING 168","Category Kondisioner Serat","Non-PC","T",35,35.28,1.008,"Completed"]
[67118183,"TESTING 169","Category Kondisioner Serat","Non-PC","T",35,35.130000000000003,null,null,67118183,"TESTING 169","Category Kondisioner Serat","Non-PC","T",35,35.130000000000003,1.0037142857142858,"Completed"]
[67118199,"TESTING 170","Category Kondisioner Serat","Non-PC","T",0,null,null,null,67118199,"TESTING 170","Category Kondisioner Serat","Non-PC","T",0,0,"no buffer stock target","no buffer stock target"]
[67118418,"TESTING 115","Category Daun dan Bubuk Teh","Non-PC","T",28103,79540,null,null,67118418,"TESTING 115","Category Daun dan Bubuk Teh","Non-PC","T",28103,79540,2.8303028146461231,"Completed"]
[67118559,"TESTING 171","Category Kondisioner Serat","Non-PC","T",0,null,null,null,67118559,"TESTING 171","Category Kondisioner Serat","Non-PC","T",0,0,"no buffer stock target","no buffer stock target"]
[67126701,"TESTING 172","Category Kondisioner Serat","Non-PC","T",1.25,2.4,null,null,67126701,"TESTING 172","Category Kondisioner Serat","Non-PC","T",1.25,2.4,1.92,"Completed"]
[67126707,"TESTING 173","Category Kondisioner Serat","Non-PC","T",1.75,3.4,null,null,67126707,"TESTING 173","Category Kondisioner Serat","Non-PC","T",1.75,3.4,1.9428571428571428,"Completed"]
[67126709,"TESTING 174","Category Kondisioner Serat","Non-PC","T",0,null,null,null,67126709,"TESTING 174","Category Kondisioner Serat","Non-PC","T",0,0,"no buffer stock target","no buffer stock target"]
[67140829,"TESTING 100","Category Peduli Rambut","PC","T",111.60000000000001,0,null,null,67140829,"TESTING 100","Category Peduli Rambut","PC","T",111.60000000000001,0,0,"In Progress"]
[67141315,"TESTING 06","Category Fabrico Cleaner","Non-PC","M",0,null,null,null,67141315,"TESTING 06","Category Fabrico Cleaner","Non-PC","M",0,0,"no buffer stock target","no buffer stock target"]
[67141317,"TESTING 175","Category Fabrico Cleaner","Non-PC","T",0,null,null,null,67141317,"TESTING 175","Category Fabrico Cleaner","Non-PC","T",0,0,"no buffer stock target","no buffer stock target"]
[67141318,"TESTING 07","Category Fabrico Cleaner","Non-PC","M",0,null,null,null,67141318,"TESTING 07","Category Fabrico Cleaner","Non-PC","M",0,0,"no buffer stock target","no buffer stock target"]
[67141320,"TESTING 176","Category Fabrico Cleaner","Non-PC","T",0,null,null,null,67141320,"TESTING 176","Category Fabrico Cleaner","Non-PC","T",0,0,"no buffer stock target","no buffer stock target"]
[67151358,"TESTING 45","Category Muka","PC","KG",110,286,null,null,67151358,"TESTING 45","Category Muka","PC","KG",110,286,2.6,"Completed"]
[67151359,"TESTING 46","Category Muka","PC","KG",76.5,0,null,null,67151359,"TESTING 46","Category Muka","PC","KG",76.5,{"$f":"G218","v":0},0,"In Progress"]
[67154358,"TESTING 234","Category Muka","PC","T",120,194.417,null,null,67154358,"TESTING 234","Category Muka","PC","T",120,194.417,1.6201416666666666,"Completed"]
[67164491,"TESTING 52","Category Ice Cream","Non-PC","KG",1994,4200,null,null,{"$f":"A220","v":67164491},"TESTING 52","Category Ice Cream","Non-PC","KG",1994,4200,2.106318956870612,"Completed"]
[67179192,"TESTING 276","Category Muka","PC","T",0,140,null,null,67179192,"TESTING 276","Category Muka","PC","T",0,140,"no buffer stock target","no buffer stock target"]
[67179199,"TESTING 47","Category Muka","PC","KG",206.4,197,null,null,67179199,"TESTING 47","Category Muka","PC","KG",206.4,197,0.95445736434108519,"Completed"]
[67188444,"TESTING 177","Category Fabrico Cleaner","Non-PC","T",122.523725783899,14,null,null,67188444,"TESTING 177","Category Fabrico Cleaner","Non-PC","T",122.523725783899,14,0.11426358372983593,"In Progress"]
[67188450,"TESTING 178","Category Fabrico Cleaner","Non-PC","T",106.689390912601,42,null,null,67188450,"TESTING 178","Category Fabrico Cleaner","Non-PC","T",106.689390912601,42,0.39366613344344636,"In Progress"]
[67214037,"TESTING 277","Category Bau Badan","PC","T",150,200,null,null,67214037,"TESTING 277","Category Bau Badan","PC","T",150,200,1.3333333333333333,"Completed"]
[67214040,"TESTING 278","Category Bau Badan","PC","T",300,470,null,null,67214040,"TESTING 278","Category Bau Badan","PC","T",300,470,1.5666666666666667,"Completed"]
[67242420,"TESTING 235","Category Muka","PC","T",90,92.387,null,null,67242420,"TESTING 235","Category Muka","PC","T",90,92.387,1.0265222222222223,"Completed"]
[67242425,"TESTING 236","Category Muka","PC","T",60,0,null,null,67242425,"TESTING 236","Category Muka","PC","T",60,0,0,"In Progress"]
[67255948,"TESTING 179","Category Kondisioner Serat","Non-PC","T",9,9.1300000000000008,null,null,67255948,"TESTING 179","Category Kondisioner Serat","Non-PC","T",9,9.1300000000000008,1.0144444444444445,"Completed"]
[67297678,"TESTING 101","Category Peduli Rambut","PC","KG",0,null,null,null,67297678,"TESTING 101","Category Peduli Rambut","PC","KG",0,0,"no buffer stock target","no buffer stock target"]
[67297679,"TESTING 102","Category Peduli Rambut","PC","KG",0,null,null,null,67297679,"TESTING 102","Category Peduli Rambut","PC","KG",0,0,"no buffer stock target","no buffer stock target"]
[67305540,"TESTING 180","Category Kondisioner Serat","Non-PC","T",30,32.17,null,null,67305540,"TESTING 180","Category Kondisioner Serat","Non-PC","T",30,32.17,1.0723333333333334,"Completed"]
[67244050,"TESTING 182","Category Fabrico Cleaner","Non-PC","T",2.52,2.62,null,null,67244050,"TESTING 182","Category Fabrico Cleaner","Non-PC","T",2.52,2.62,1.0396825396825398,"Completed"]
[67244044,"TESTING 185","Category Fabrico Cleaner","Non-PC","T",6.327,6.4,null,null,67244044,"TESTING 185","Category Fabrico Cleaner","Non-PC","T",6.327,6.4,1.0115378536431168,"Completed"]
[67255207,"TESTING 188","Category Fabrico Cleaner","Non-PC","T",6.72,6.81,null,null,67255207,"TESTING 188","Category Fabrico Cleaner","Non-PC","T",6.72,6.81,1.0133928571428572,"Completed"]
[67294776,"TESTING 183","Category Fabrico Cleaner","Non-PC","T",1.66,1.82,null,null,67294776,"TESTING 183","Category Fabrico Cleaner","Non-PC","T",1.66,1.82,1.0963855421686748,"Completed"]
[67294780,"TESTING 184","Category Fabrico Cleaner","Non-PC","T",1,1.1200000000000001,null,null,67294780,"TESTING 184","Category Fabrico Cleaner","Non-PC","T",1,1.1200000000000001,1.1200000000000001,"Completed"]
[67294774,"TESTING 186","Category Fabrico Cleaner","Non-PC","T",7.8810000000000002,8.01,null,null,67294774,"TESTING 186","Category Fabrico Cleaner","Non-PC","T",7.8810000000000002,8.01,1.0163684811572136,"Completed"]
[67294778,"TESTING 187","Category Fabrico Cleaner","Non-PC","T",1.5230600000000001,1.53,null,null,67294778,"TESTING 187","Category Fabrico Cleaner","Non-PC","T",1.5230600000000001,1.53,1.0045566162856354,"Completed"]
[67255213,"TESTING 189","Category Fabrico Cleaner","Non-PC","T",4.3600000000000003,8.7899999999999991,null,null,67255213,"TESTING 189","Category Fabrico Cleaner","Non-PC","T",4.3600000000000003,8.7899999999999991,2.0160550458715591,"Completed"]
[67255216,"TESTING 190","Category Fabrico Cleaner","Non-PC","T",0.28999999999999998,0.8,null,null,67255216,"TESTING 190","Category Fabrico Cleaner","Non-PC","T",0.28999999999999998,0.8,2.7586206896551726,"Completed"]
[67294777,"TESTING 08","Category Fabrico Cleaner","Non-PC","M",14400,69600,null,null,67294777,"TESTING 08","Category Fabrico Cleaner","Non-PC","M",14400,69600,4.833333333333333,"Completed"]
[67294775,"TESTING 09","Category Fabrico Cleaner","Non-PC","M",38628,38400,null,null,67294775,"TESTING 09","Category Fabrico Cleaner","Non-PC","M",38628,38400,0.99409754582168375,"Completed"]
[67208125,"TESTING 279","Category Bau Badan","PC","T",150,200,null,null,67208125,"TESTING 279","Category Bau Badan","PC","T",150,200,1.3333333333333333,"Completed"]
[67208132,"TESTING 280","Category Bau Badan","PC","T",150,250,null,null,67208132,"TESTING 280","Category Bau Badan","PC","T",150,250,1.6666666666666667,"Completed"]
[67208130,"TESTING 281","Category Bau Badan","PC","T",300,330,null,null,67208130,"TESTING 281","Category Bau Badan","PC","T",300,330,1.1000000000000001,"Completed"]
[67208129,"TESTING 282","Category Bau Badan","PC","T",300,450,null,null,67208129,"TESTING 282","Category Bau Badan","PC","T",300,450,1.5,"Completed"]
[67208128,"TESTING 283","Category Bau Badan","PC","T",250,290,null,null,67208128,"TESTING 283","Category Bau Badan","PC","T",250,290,1.1599999999999999,"Completed"]
[67208131,"TESTING 284","Category Bau Badan","PC","T",250,535,null,null,67208131,"TESTING 284","Category Bau Badan","PC","T",250,535,2.14,"Completed"]
[67208126,"TESTING 285","Category Bau Badan","PC","T",800,1120,null,null,67208126,"TESTING 285","Category Bau Badan","PC","T",800,1120,1.4,"Completed"]
[67208127,"TESTING 286","Category Bau Badan","PC","T",500,950,null,null,67208127,"TESTING 286","Category Bau Badan","PC","T",500,950,1.9,"Completed"]
[67208122,"TESTING 287","Category Bau Badan","PC","T",250,400,null,null,67208122,"TESTING 287","Category Bau Badan","PC","T",250,400,1.6,"Completed"]
[67208121,"TESTING 288","Category Bau Badan","PC","T",150,200,null,null,67208121,"TESTING 288","Category Bau Badan","PC","T",150,200,1.3333333333333333,"Completed"]
[67208120,"TESTING 289","Category Bau Badan","PC","T",300,390,null,null,67208120,"TESTING 289","Category Bau Badan","PC","T",300,390,1.3,"Completed"]
[67208124,"TESTING 290","Category Bau Badan","PC","T",350,710,null,null,67208124,"TESTING 290","Category Bau Badan","PC","T",350,710,2.0285714285714285,"Completed"]
[67208123,"TESTING 291","Category Bau Badan","PC","T",150,270,null,null,67208123,"TESTING 291","Category Bau Badan","PC","T",150,270,1.8,"Completed"]
[67208119,"TESTING 292","Category Bau Badan","PC","T",750,1220,null,null,67208119,"TESTING 292","Category Bau Badan","PC","T",750,1220,1.6266666666666667,"Completed"]
[67214104,"TESTING 293","Category Bau Badan","PC","T",0,90,null,null,67214104,"TESTING 293","Category Bau Badan","PC","T",0,90,"no buffer stock target","no buffer stock target"]
[21073442,"TESTING 294","Category Muka","PC","T",0,24,null,null,21073442,"TESTING 294","Category Muka","PC","T",0,24,"no buffer stock target","no buffer stock target"]
[67193948,"TESTING 295","Category Muka","PC","T",0,100,null,null,67193948,"TESTING 295","Category Muka","PC","T",0,100,"no buffer stock target","no buffer stock target"]
[67067588,"TESTING 296","Category Muka","PC","T",0,165,null,null,67067588,"TESTING 296","Category Muka","PC","T",0,165,{"$f":"IF(O261=0,\"no buffer stock target\",IFERROR(P261/O261,\"NA\"))","v":"no buffer stock target"},{"$f":"IF(Q261=\"no buffer stock target\",\"no buffer stock target\",(IF(Q261>=80%,\"Completed\",\"In Progress\")))","v":"no buffer stock target"}]
[67079489,"TESTING 297","Category Muka","PC","T",120,130,null,null,67079489,"TESTING 297","Category Muka",{"$f":"D262","v":"PC"},"T",120,130,1.0833333333333333,"Completed"]
[67067570,"TESTING 298","Category Muka","PC","T",0,120,null,null,{"$f":"A263","v":67067570},"TESTING 298","Category Muka","PC","T",0,120,"no buffer stock target","no buffer stock target"]
[67179193,"TESTING 299","Category Muka","PC","T",0,130,null,null,67179193,"TESTING 299","Category Muka","PC","T",0,130,"no buffer stock target","no buffer stock target"]
[67082142,"TESTING 300","Category Muka","PC","T",0,30,null,null,67082142,"TESTING 300","Category Muka","PC","T",0,30,"no buffer stock target","no buffer stock target"]
[67070396,"TESTING 301","Category Muka","PC","T",0,20,null,null,67070396,"TESTING 301","Category Muka","PC","T",0,20,"no buffer stock target","no buffer stock target"]
[67066062,"TESTING 302","Category Muka","PC","T",60,129.97,null,null,67066062,"TESTING 302","Category Muka","PC","T",60,129.97,2.1661666666666668,"Completed"]
[67096643,"TESTING 303","Category Muka","PC","T",0,10,null,null,67096643,"TESTING 303","Category Muka","PC","T",0,10,"no buffer stock target","no buffer stock target"]
[67154394,"TESTING 304","Category Muka","PC","T",60,119.97,null,null,67154394,"TESTING 304","Category Muka","PC","T",60,119.97,1.9995000000000001,"Completed"]
[67056662,"TESTING 305","Category Muka","PC","T",0,0,null,null,67056662,"TESTING 305","Category Muka","PC","T",0,0,"no buffer stock target","no buffer stock target"]
[67096645,"TESTING 306","Category Muka","PC","T",0,150,null,null,67096645,"TESTING 306","Category Muka","PC","T",0,150,"no buffer stock target","no buffer stock target"]
[67159709,"TESTING 307","Category Muka","PC","T",0,0,null,null,67159709,"TESTING 307","Category Muka","PC","T",0,0,"no buffer stock target","no buffer stock target"]
[67154354,"TESTING 237","Category Muka","PC","T",240,1814.0640000000001,null,null,67154354,"TESTING 237","Category Muka","PC","T",240,1814.0640000000001,7.5586000000000002,"Completed"]
[67154227,"TESTING 238","Category Muka","PC","T",120,266.87200000000001,null,null,67154227,"TESTING 238","Category Muka","PC","T",120,266.87200000000001,2.2239333333333335,"Completed"]
[67154372,"TESTING 239","Category Muka","PC","T",105.6,118.753,null,null,67154372,"TESTING 239","Category Muka","PC","T",105.6,118.753,1.1245549242424242,"Completed"]
[67185014,"TESTING 308","Category Bau Badan","PC","T",150,200,null,null,67185014,"TESTING 308","Category Bau Badan","PC","T",150,200,1.3333333333333333,"Completed"]
[67185013,"TESTING 309","Category Bau Badan","PC","T",150,200,null,null,67185013,"TESTING 309","Category Bau Badan","PC","T",150,200,1.3333333333333333,"Completed"]
[67139403,"TESTING 310","Category Bau Badan","PC","T",150,220,null,null,67139403,"TESTING 310","Category Bau Badan","PC","T",150,220,1.4666666666666666,"Completed"]
[67214044,"TESTING 311","Category Bau Badan","PC","T",150,250,null,null,67214044,"TESTING 311","Category Bau Badan","PC","T",150,250,1.6666666666666667,"Completed"]
[67070203,"TESTING 312","Category Bau Badan","PC","T",150,230,null,null,67070203,"TESTING 312","Category Bau Badan","PC","T",150,230,1.5333333333333334,"Completed"]
[67214042,"TESTING 313","Category Bau Badan","PC","T",150,210,null,null,67214042,"TESTING 313","Category Bau Badan","PC","T",150,210,1.4,"Completed"]
[67117228,"TESTING 314","Category Bau Badan","PC","T",0,200,null,null,67117228,"TESTING 314","Category Bau Badan","PC","T",0,200,"no buffer stock target","no buffer stock target"]
[67117231,"TESTING 315","Category Bau Badan","PC","T",0,0,null,null,67117231,"TESTING 315","Category Bau Badan","PC","T",0,0,"no buffer stock target","no buffer stock target"]
[67117230,"TESTING 316","Category Bau Badan","PC","T",150,10,null,null,67117230,"TESTING 316","Category Bau Badan","PC","T",150,10,6.6666666666666666E-2,"In Progress"]
[67117233,"TESTING 317","Category Bau Badan","PC","T",0,0,null,null,67117233,"TESTING 317","Category Bau Badan","PC","T",0,0,"no buffer stock target","no buffer stock target"]
[62176846,"TESTING 51","Category Pelihara Mulut","PC","M",86400,172800,null,null,62176846,"TESTING 51","Category Pelihara Mulut","PC","M",86400,172800,2,"Completed"]
[67067199,"TESTING 117","Category Daun dan Bubuk Teh","Non-PC","T",0,0,null,null,67067199,"TESTING 117","Category Daun dan Bubuk Teh","Non-PC","T",0,0,"no buffer stock target","no buffer stock target"]
[67339178,"TESTING 118","Category Daun dan Bubuk Teh","Non-PC","T",0,0,null,null,67339178,"TESTING 118","Category Daun dan Bubuk Teh","Non-PC","T",0,0,"no buffer stock target","no buffer stock target"]
[67076380,"TESTING 119","Category Daun dan Bubuk Teh","Non-PC","T",0,0,null,null,67076380,"TESTING 119","Category Daun dan Bubuk Teh","Non-PC","T",0,0,"no buffer stock target","no buffer stock target"]
[62147394,"TESTING 120","Category Daun dan Bubuk Teh","Non-PC","T",0,0,null,null,62147394,"TESTING 120","Category Daun dan Bubuk Teh","Non-PC","T",0,0,"no buffer stock target","no buffer stock target"]
[67076378,"TESTING 121","Category Daun dan Bubuk Teh","Non-PC","T",0,0,null,null,67076378,"TESTING 121","Category Daun dan Bubuk Teh","Non-PC","T",0,0,"no buffer stock target","no buffer stock target"]
[67062444,"TESTING 122","Category Daun dan Bubuk Teh","Non-PC","T",0,0,null,null,67062444,"TESTING 122","Category Daun dan Bubuk Teh","Non-PC","T",0,0,"no buffer stock target","no buffer stock target"]
[67062483,"TESTING 123","Category Daun dan Bubuk Teh","Non-PC","T",0,0,null,null,67062483,"TESTING 123","Category Daun dan Bubuk Teh","Non-PC","T",0,0,"no buffer stock target","no buffer stock target"]
[67062449,"TESTING 124","Category Daun dan Bubuk Teh","Non-PC","T",0,0,null,null,67062449,"TESTING 124","Category Daun dan Bubuk Teh","Non-PC","T",0,0,"no buffer stock target","no buffer stock target"]
[67062475,"TESTING 125","Category Daun dan Bubuk Teh","Non-PC","T",0,0,null,null,{"$f":"A295","v":67062475},"TESTING 125","Category Daun dan Bubuk Teh","Non-PC","T",0,0,"no buffer stock target","no buffer stock target"]
[67062462,"TESTING 126","Category Daun dan Bubuk Teh","Non-PC","T",0,0,null,null,67062462,"TESTING 126","Category Daun dan Bubuk Teh","Non-PC","T",0,0,"no buffer stock target","no buffer stock target"]
[67062516,"TESTING 127","Category Daun dan Bubuk Teh","Non-PC","T",0,0,null,null,67062516,"TESTING 127","Category Daun dan Bubuk Teh","Non-PC","T",0,0,"no buffer stock target","no buffer stock target"]
[67062498,"TESTING 128","Category Daun dan Bubuk Teh","Non-PC","T",0,0,null,null,67062498,"TESTING 128","Category Daun dan Bubuk Teh","Non-PC","T",0,0,"no buffer stock target","no buffer stock target"]
[67062331,"TESTING 129","Category Daun dan Bubuk Teh","Non-PC","T",0,0,null,null,67062331,"TESTING 129","Category Daun dan Bubuk Teh","Non-PC","T",0,0,"no buffer stock target","no buffer stock target"]
[67028809,"TESTING 130","Category Daun dan Bubuk Teh","Non-PC","T",0,0,null,null,67028809,"TESTING 130","Category Daun dan Bubuk Teh","Non-PC","T",0,0,"no buffer stock target","no buffer stock target"]
[67028813,"TESTING 131","Category Daun dan Bubuk Teh","Non-PC","T",0,0,null,null,67028813,"TESTING 131","Category Daun dan Bubuk Teh","Non-PC","T",0,0,"no buffer stock target","no buffer stock target"]
[67025457,"TESTING 132","Category Daun dan Bubuk Teh","Non-PC","T",0,0,null,null,67025457,"TESTING 132","Category Daun dan Bubuk Teh","Non-PC","T",0,0,"no buffer stock target","no buffer stock target"]
[67025459,"TESTING 133","Category Daun dan Bubuk Teh","Non-PC","T",0,0,null,null,67025459,"TESTING 133","Category Daun dan Bubuk Teh","Non-PC","T",0,0,"no buffer stock target","no buffer stock target"]
[21187260,"TESTING 134","Category Daun dan Bubuk Teh","Non-PC","T",0,0,null,null,21187260,"TESTING 134","Category Daun dan Bubuk Teh","Non-PC","T",0,0,"no buffer stock target","no buffer stock target"]
[67062342,"TESTING 135","Category Daun dan Bubuk Teh","Non-PC","T",0,0,null,null,67062342,"TESTING 135","Category Daun dan Bubuk Teh","Non-PC","T",0,0,"no buffer stock target","no buffer stock target"]
[67079475,"TESTING 15","Category Muka","PC","T",13.2,null,null,null,67079475,"TESTING 15","Category Muka","PC","T",13.2,0,0,"In Progress"]
[67069843,"TESTING 16","Category Muka","PC","T",0,null,null,null,67069843,"TESTING 16","Category Muka","PC","T",0,0,"no buffer stock target","no buffer stock target"]
[67069847,"TESTING 17","Category Muka","PC","T",0,null,null,null,67069847,"TESTING 17","Category Muka","PC","T",0,0,"no buffer stock target","no buffer stock target"]
[67056654,"TESTING 18","Category Muka","PC","T",0,null,null,null,67056654,"TESTING 18","Category Muka","PC","T",0,0,"no buffer stock target","no buffer stock target"]
[67056658,"TESTING 19","Category Muka","PC","T",0,null,null,null,67056658,"TESTING 19","Category Muka","PC","T",0,0,"no buffer stock target","no buffer stock target"]
[67070384,"TESTING 20","Category Muka","PC","T",0,null,null,null,67070384,"TESTING 20","Category Muka","PC","T",0,0,"no buffer stock target","no buffer stock target"]
[67056642,"TESTING 21","Category Muka","PC","T",30,null,null,null,67056642,"TESTING 21","Category Muka","PC","T",30,0,0,"In Progress"]
[67056598,"TESTING 22","Category Muka","PC","T",0,null,null,null,67056598,"TESTING 22","Category Muka","PC","T",0,0,"no buffer stock target","no buffer stock target"]
[67072842,"TESTING 23","Category Muka","PC","T",0,null,null,null,67072842,"TESTING 23","Category Muka","PC","T",0,0,"no buffer stock target","no buffer stock target"]
[67072868,"TESTING 24","Category Muka","PC","T",0,null,null,null,67072868,"TESTING 24","Category Muka","PC","T",0,0,"no buffer stock target","no buffer stock target"]
[67072874,"TESTING 25","Category Muka","PC","T",0,null,null,null,67072874,"TESTING 25","Category Muka","PC","T",0,0,"no buffer stock target","no buffer stock target"]
[67072856,"TESTING 26","Category Muka","PC","T",0,null,null,null,67072856,"TESTING 26","Category Muka","PC","T",0,0,"no buffer stock target","no buffer stock target"]
[67056668,"TESTING 27","Category Muka","PC","T",0,null,null,null,67056668,"TESTING 27","Category Muka","PC","T",0,0,"no buffer stock target","no buffer stock target"]
[67259541,"TESTING 11","Category Fabrico Cleaner","Non-PC","rolls",44400,96600,null,null,67259541,"TESTING 11","Category Fabrico Cleaner","Non-PC","rolls",44400,96600,2.1756756756756759,"Completed"]
[67259539,"TESTING 10","Category Fabrico Cleaner","Non-PC","rolls",140400,290800,null,null,67259539,"TESTING 10","Category Fabrico Cleaner","Non-PC","rolls",140400,290800,2.0712250712250713,"Completed"]
["Grand Total",null,null,null,null,4362555.3355980311,8609873.3825164959,null,null,"Grand Total",0,0,0,0,4362555.3355980311,8609873.3825164959,1.9735849107198158,"Completed"]
[]
[]
[]
[]
[]
[]
[]
[]
[null,null,{"$f":"IF([0]!DashboardCategory=\"All\",\"Face\",[0]!DashboardCategory)","v":"Face"},null,null,{"$f":"SUMIF(C4:C327,C330,F4:F327)","v":0},{"$f":"SUMIF(C4:C327,C330,G4:G327)","v":0},{"$f":"IFERROR(F330/G330,0)","v":0}]
[null,null,"All",null,null,{"$f":"GETPIVOTDATA(\"Sum of Final Buffer Stock Quantity\",$A$3)","v":4362555.3355980311},{"$f":"GETPIVOTDATA(\"Sum of Opening Stock Wk14 + 1\",$A$3)","v":8609873.3825164959},{"$f":"CategoryAllTotalBufferStock/CategoryAllOpeningStock","v":0.5066921593129099}]

{"sheet":"Supplier Pivot","index":2,"n_rows":329,"n_cols":26,"rows_kept":329,"cut":false,"hidden":false,"merged":[]}
[]
[]
["Material","Material Description","Vendor Name","Sum of Final Buffer Stock Quantity","Sum of Opening Stock Wk14 + 1",null,null,"Material","Material Description","Vendor Name","Sum of Final Buffer Stock Quantity",{"$f":"+E3","v":"Sum of Opening Stock Wk14 + 1"},"Fulfillment","Status",null,"Row Labels"]
[20064731,"TESTING 191","PT 10 TOKOH INDONESIA",18,48,null,null,{"$f":"A4","v":20064731},{"$f":"B4","v":"TESTING 191"},{"$f":"C4","v":"PT 10 TOKOH INDONESIA"},{"$f":"D4","v":18},{"$f":"E4","v":48},{"$f":"IF(K4=0,\"no buffer stock target\",IFERROR(L4/K4,\"NA\"))","v":2.6666666666666665},{"$f":"IF(M4=\"no buffer stock target\",\"no buffer stock target\",(IF(M4>=80%,\"Completed\",\"In Progress\")))","v":"Completed"},null,"PT 01 FLEXIBLES INDONESIA",null,null,null,null,null,null,"Completed","In Progress","no buffer stock target","Grand Total"]
[20064732,"TESTING 192","PT 10 TOKOH INDONESIA",18,10,null,null,{"$f":"A5","v":20064732},"TESTING 192","PT 10 TOKOH INDONESIA",18,10,{"$f":"IF(K5=0,\"no buffer stock target\",IFERROR(L5/K5,\"NA\"))","v":0.55555555555555558},{"$f":"IF(M5=\"no buffer stock target\",\"no buffer stock target\",(IF(M5>=80%,\"Completed\",\"In Progress\")))","v":"In Progress"},null,"PT 02 RUPA RUPA  PT."]
[20064992,"TESTING 53","PT 06 INTAN PERMATA",0,null,null,null,20064992,"TESTING 53","PT 06 INTAN PERMATA",0,0,"no buffer stock target","no buffer stock target",null,"PT 03 A And Z Indonesia PT."]
[20068583,"TESTING 54","PT 06 INTAN PERMATA",113.3,0,null,null,20068583,"TESTING 54","PT 06 INTAN PERMATA",113.3,0,0,"In Progress",null,"PT 04 PRIMA INDUSTRI"]
[20068810,"TESTING 55","PT 06 INTAN PERMATA",142.8915603198744,0,null,null,20068810,"TESTING 55","PT 06 INTAN PERMATA",142.8915603198744,0,0,"In Progress",null,"PT 05 BERKAT DOA PT."]
[20074075,"TESTING 56","PT 06 INTAN PERMATA",0,null,null,null,20074075,"TESTING 56","PT 06 INTAN PERMATA",0,0,"no buffer stock target","no buffer stock target",null,"PT 06 INTAN PERMATA"]
[20074080,"TESTING 57","PT 06 INTAN PERMATA",0,null,null,null,20074080,"TESTING 57","PT 06 INTAN PERMATA",0,0,"no buffer stock target","no buffer stock target",null,"PT 07 AGUNG UTAMA"]
[20075079,"TESTING 136","PT 09 BERDAYA CIPTA BUNGKUS",3,6.2,null,null,20075079,"TESTING 136","PT 09 BERDAYA CIPTA BUNGKUS",3,6.2,2.0666666666666669,"Completed",null,"PT 08 KIRANA PRINT BERSAMA"]
[20075080,"TESTING 137","PT 09 BERDAYA CIPTA BUNGKUS",2.5,5.19,null,null,20075080,"TESTING 137","PT 09 BERDAYA CIPTA BUNGKUS",2.5,5.19,2.0760000000000001,"Completed",null,"PT 09 BERDAYA CIPTA BUNGKUS"]
[20075211,"TESTING 138","PT 09 BERDAYA CIPTA BUNGKUS",7,6.7,null,null,20075211,"TESTING 138","PT 09 BERDAYA CIPTA BUNGKUS",7,6.7,0.95714285714285718,"Completed",null,"PT 10 TOKOH INDONESIA"]
[20075235,"TESTING 139","PT 09 BERDAYA CIPTA BUNGKUS",3,6.2,null,null,20075235,"TESTING 139","PT 09 BERDAYA CIPTA BUNGKUS",3,6.2,2.0666666666666669,"Completed",null,"PT 11 BUNGA KRISANTHIUM OFFSET"]
[20075237,"TESTING 140","PT 09 BERDAYA CIPTA BUNGKUS",5,5.23,null,null,20075237,"TESTING 140","PT 09 BERDAYA CIPTA BUNGKUS",5,5.23,1.046,"Completed",null,"PT 12 LAPAK PEMULA"]
[20086155,"TESTING 103","PT 07 AGUNG UTAMA",105365.85365853658,194965.85365853657,null,null,20086155,"TESTING 103","PT 07 AGUNG UTAMA",105365.85365853658,194965.85365853657,1.8503703703703702,"Completed",null,"PT 13 PRIMA MASTER LABEL"]
[20205679,"TESTING 58","PT 06 INTAN PERMATA",0,null,null,null,20205679,"TESTING 58","PT 06 INTAN PERMATA",0,0,"no buffer stock target","no buffer stock target",null,"Grand Total"]
[20205687,"TESTING 59","PT 06 INTAN PERMATA",0,null,null,null,20205687,"TESTING 59","PT 06 INTAN PERMATA",0,0,"no buffer stock target","no buffer stock target"]
[20205690,"TESTING 60","PT 06 INTAN PERMATA",396.75858823529416,0,null,null,20205690,"TESTING 60","PT 06 INTAN PERMATA",396.75858823529416,0,0,"In Progress"]
[20207104,"TESTING 193","PT 10 TOKOH INDONESIA",14,15,null,null,20207104,"TESTING 193","PT 10 TOKOH INDONESIA",14,15,1.0714285714285714,"Completed"]
[20207105,"TESTING 194","PT 10 TOKOH INDONESIA",14,15,null,null,20207105,"TESTING 194","PT 10 TOKOH INDONESIA",14,15,1.0714285714285714,"Completed"]
[20227725,"TESTING 61","PT 06 INTAN PERMATA",0,null,null,null,20227725,"TESTING 61","PT 06 INTAN PERMATA",0,0,"no buffer stock target","no buffer stock target"]
[20235325,"TESTING 29","PT 04 PRIMA INDUSTRI",129600,153600,null,null,20235325,"TESTING 29","PT 04 PRIMA INDUSTRI",129600,153600,1.1851851851851851,"Completed"]
[20235326,"TESTING 30","PT 04 PRIMA INDUSTRI",168000,576000,null,null,20235326,"TESTING 30","PT 04 PRIMA INDUSTRI",168000,576000,3.4285714285714284,"Completed"]
[20269437,"TESTING 195","PT 11 BUNGA KRISANTHIUM OFFSET",0,488,null,null,20269437,"TESTING 195","PT 11 BUNGA KRISANTHIUM OFFSET",0,488,"no buffer stock target","no buffer stock target"]
[20285561,"TESTING 62","PT 06 INTAN PERMATA",36.298352941176461,0,null,null,20285561,"TESTING 62","PT 06 INTAN PERMATA",36.298352941176461,0,0,"In Progress"]
[20288686,"TESTING 63","PT 06 INTAN PERMATA",0,null,null,null,20288686,"TESTING 63","PT 06 INTAN PERMATA",0,0,"no buffer stock target","no buffer stock target"]
[20295913,"TESTING 141","PT 09 BERDAYA CIPTA BUNGKUS",0,null,null,null,20295913,"TESTING 141","PT 09 BERDAYA CIPTA BUNGKUS",0,0,"no buffer stock target","no buffer stock target"]
[20298777,"TESTING 109","PT 08 KIRANA PRINT BERSAMA",10500,28900,null,null,20298777,"TESTING 109","PT 08 KIRANA PRINT BERSAMA",10500,28900,2.7523809523809524,"Completed"]
[21037332,"TESTING 240","PT 13 PRIMA MASTER LABEL",50,144,null,null,21037332,"TESTING 240","PT 13 PRIMA MASTER LABEL",50,144,2.88,"Completed"]
[21037333,"TESTING 31","PT 04 PRIMA INDUSTRI",0,0,null,null,21037333,"TESTING 31","PT 04 PRIMA INDUSTRI",0,0,"no buffer stock target","no buffer stock target"]
[21037340,"TESTING 32","PT 04 PRIMA INDUSTRI",0,0,null,null,21037340,"TESTING 32","PT 04 PRIMA INDUSTRI",0,0,"no buffer stock target","no buffer stock target"]
[21070446,"TESTING 241","PT 13 PRIMA MASTER LABEL",100,205,null,null,21070446,"TESTING 241","PT 13 PRIMA MASTER LABEL",100,205,2.0499999999999998,"Completed"]
[21071674,"TESTING 142","PT 09 BERDAYA CIPTA BUNGKUS",2.5,5.01,null,null,21071674,"TESTING 142","PT 09 BERDAYA CIPTA BUNGKUS",2.5,5.01,2.004,"Completed"]
[21072071,"TESTING 28","PT 03 A And Z Indonesia PT.",112,276,null,null,21072071,"TESTING 28","PT 03 A And Z Indonesia PT.",112,276,2.4642857142857144,"Completed"]
[21073442,"TESTING 294","PT 13 PRIMA MASTER LABEL",0,24,null,null,21073442,"TESTING 294","PT 13 PRIMA MASTER LABEL",0,24,"no buffer stock target","no buffer stock target"]
[21074502,"TESTING 209","PT 12 LAPAK PEMULA",61.200823529411764,21.050999999999998,null,null,21074502,"TESTING 209","PT 12 LAPAK PEMULA",61.200823529411764,21.050999999999998,0.34396595970450222,"In Progress"]
[21075139,"TESTING 143","PT 09 BERDAYA CIPTA BUNGKUS",0,null,null,null,21075139,"TESTING 143","PT 09 BERDAYA CIPTA BUNGKUS",0,0,"no buffer stock target","no buffer stock target"]
[21075273,"TESTING 210","PT 12 LAPAK PEMULA",184.957705882353,359.178,null,null,21075273,"TESTING 210","PT 12 LAPAK PEMULA",184.957705882353,359.178,1.9419466644361614,"Completed"]
[21075288,"TESTING 144","PT 09 BERDAYA CIPTA BUNGKUS",13.9019967577582,14.29,null,null,21075288,"TESTING 144","PT 09 BERDAYA CIPTA BUNGKUS",13.9019967577582,14.29,1.0279098930177255,"Completed"]
[21075289,"TESTING 145","PT 09 BERDAYA CIPTA BUNGKUS",19.3748247592778,19.45,null,null,21075289,"TESTING 145","PT 09 BERDAYA CIPTA BUNGKUS",19.3748247592778,19.45,1.0038800475181693,"Completed"]
[21075828,"TESTING 146","PT 09 BERDAYA CIPTA BUNGKUS",0,null,null,null,21075828,"TESTING 146","PT 09 BERDAYA CIPTA BUNGKUS",0,0,"no buffer stock target","no buffer stock target"]
[21135205,"TESTING 147","PT 09 BERDAYA CIPTA BUNGKUS",0,null,null,null,21135205,"TESTING 147","PT 09 BERDAYA CIPTA BUNGKUS",0,0,"no buffer stock target","no buffer stock target"]
[21135206,"TESTING 148","PT 09 BERDAYA CIPTA BUNGKUS",0,null,null,null,21135206,"TESTING 148","PT 09 BERDAYA CIPTA BUNGKUS",0,0,"no buffer stock target","no buffer stock target"]
[21138450,"TESTING 149","PT 09 BERDAYA CIPTA BUNGKUS",0,null,null,null,21138450,"TESTING 149","PT 09 BERDAYA CIPTA BUNGKUS",0,0,"no buffer stock target","no buffer stock target"]
[21138459,"TESTING 150","PT 09 BERDAYA CIPTA BUNGKUS",3,6.17,null,null,21138459,"TESTING 150","PT 09 BERDAYA CIPTA BUNGKUS",3,6.17,2.0566666666666666,"Completed"]
[21138464,"TESTING 151","PT 09 BERDAYA CIPTA BUNGKUS",0,null,null,null,21138464,"TESTING 151","PT 09 BERDAYA CIPTA BUNGKUS",0,0,"no buffer stock target","no buffer stock target"]
[21139000,"TESTING 211","PT 12 LAPAK PEMULA",0,840,null,null,21139000,"TESTING 211","PT 12 LAPAK PEMULA",0,840,"no buffer stock target","no buffer stock target"]
[21139027,"TESTING 33","PT 04 PRIMA INDUSTRI",62400,9600,null,null,21139027,"TESTING 33","PT 04 PRIMA INDUSTRI",62400,9600,0.15384615384615385,"In Progress"]
[21140526,"TESTING 152","PT 09 BERDAYA CIPTA BUNGKUS",0,null,null,null,21140526,"TESTING 152","PT 09 BERDAYA CIPTA BUNGKUS",0,0,"no buffer stock target","no buffer stock target"]
[21140527,"TESTING 153","PT 09 BERDAYA CIPTA BUNGKUS",0,null,null,null,21140527,"TESTING 153","PT 09 BERDAYA CIPTA BUNGKUS",0,0,"no buffer stock target","no buffer stock target"]
[21143282,"TESTING 154","PT 09 BERDAYA CIPTA BUNGKUS",0,null,null,null,21143282,"TESTING 154","PT 09 BERDAYA CIPTA BUNGKUS",0,0,"no buffer stock target","no buffer stock target"]
[21145375,"TESTING 64","PT 06 INTAN PERMATA",127.872,0,null,null,21145375,"TESTING 64","PT 06 INTAN PERMATA",127.872,0,0,"In Progress"]
[21149159,"TESTING 181","PT 09 BERDAYA CIPTA BUNGKUS",0,null,null,null,21149159,"TESTING 181","PT 09 BERDAYA CIPTA BUNGKUS",0,0,"no buffer stock target","no buffer stock target"]
[21150299,"TESTING 01","PT 01 FLEXIBLES INDONESIA",24000,53000,null,null,21150299,"TESTING 01","PT 01 FLEXIBLES INDONESIA",24000,53000,2.2083333333333335,"Completed"]
[21150302,"TESTING 02","PT 01 FLEXIBLES INDONESIA",24000,36000,null,null,{"$f":"A56","v":21150302},"TESTING 02","PT 01 FLEXIBLES INDONESIA",24000,36000,1.5,"Completed"]
[21152885,"TESTING 03","PT 01 FLEXIBLES INDONESIA",24000,95000,null,null,21152885,"TESTING 03","PT 01 FLEXIBLES INDONESIA",24000,95000,3.9583333333333335,"Completed"]
[21152887,"TESTING 04","PT 01 FLEXIBLES INDONESIA",24000,16000,null,null,21152887,"TESTING 04","PT 01 FLEXIBLES INDONESIA",24000,16000,0.66666666666666663,"In Progress"]
[21154381,"TESTING 196","PT 11 BUNGA KRISANTHIUM OFFSET",0,null,null,null,21154381,"TESTING 196","PT 11 BUNGA KRISANTHIUM OFFSET",0,0,"no buffer stock target","no buffer stock target"]
[21154382,"TESTING 197","PT 11 BUNGA KRISANTHIUM OFFSET",0,null,null,null,21154382,"TESTING 197","PT 11 BUNGA KRISANTHIUM OFFSET",0,0,"no buffer stock target","no buffer stock target"]
[21182054,"TESTING 104","PT 07 AGUNG UTAMA",383442.26579520694,524242.26579520694,null,null,21182054,"TESTING 104","PT 07 AGUNG UTAMA",383442.26579520694,524242.26579520694,1.3672,"Completed"]
[21182147,"TESTING 110","PT 08 KIRANA PRINT BERSAMA",23000,48804,null,null,21182147,"TESTING 110","PT 08 KIRANA PRINT BERSAMA",23000,48804,2.1219130434782607,"Completed"]
[21185682,"TESTING 155","PT 09 BERDAYA CIPTA BUNGKUS",1,1.05,null,null,21185682,"TESTING 155","PT 09 BERDAYA CIPTA BUNGKUS",1,1.05,1.05,"Completed"]
[21185717,"TESTING 65","PT 06 INTAN PERMATA",0,null,null,null,21185717,"TESTING 65","PT 06 INTAN PERMATA",0,0,"no buffer stock target","no buffer stock target"]
[21187260,"TESTING 134","PT 08 KIRANA PRINT BERSAMA",0,0,null,null,21187260,"TESTING 134","PT 08 KIRANA PRINT BERSAMA",0,0,"no buffer stock target","no buffer stock target"]
[21188579,"TESTING 156","PT 09 BERDAYA CIPTA BUNGKUS",0,null,null,null,21188579,"TESTING 156","PT 09 BERDAYA CIPTA BUNGKUS",0,0,"no buffer stock target","no buffer stock target"]
[21189043,"TESTING 242","PT 13 PRIMA MASTER LABEL",100,320,null,null,21189043,"TESTING 242","PT 13 PRIMA MASTER LABEL",100,320,3.2,"Completed"]
[21189044,"TESTING 34","PT 04 PRIMA INDUSTRI",5700,50400,null,null,21189044,"TESTING 34","PT 04 PRIMA INDUSTRI",5700,50400,8.8421052631578956,"Completed"]
[62108478,"TESTING 48","PT 04 PRIMA INDUSTRI",147.27000000000001,0,null,null,62108478,"TESTING 48","PT 04 PRIMA INDUSTRI",147.27000000000001,0,{"$f":"IF(K69=0,\"no buffer stock target\",IFERROR(L69/K69,\"NA\"))","v":0},{"$f":"IF(M69=\"no buffer stock target\",\"no buffer stock target\",(IF(M69>=80%,\"Completed\",\"In Progress\")))","v":"In Progress"}]
[62108911,"TESTING 66","PT 06 INTAN PERMATA",642,0,null,null,62108911,"TESTING 66","PT 06 INTAN PERMATA",642,0,0,"In Progress"]
[62138001,"TESTING 49","PT 04 PRIMA INDUSTRI",0,null,null,null,62138001,"TESTING 49","PT 04 PRIMA INDUSTRI",0,0,"no buffer stock target","no buffer stock target"]
[62138128,"TESTING 50","PT 04 PRIMA INDUSTRI",0,null,null,null,62138128,"TESTING 50","PT 04 PRIMA INDUSTRI",0,0,"no buffer stock target","no buffer stock target"]
[62138166,"TESTING 105","PT 07 AGUNG UTAMA",287910.38550914614,947910.38550914614,null,null,62138166,"TESTING 105","PT 07 AGUNG UTAMA",287910.38550914614,947910.38550914614,3.2923799668874172,"Completed"]
[62138174,"TESTING 106","PT 07 AGUNG UTAMA",324988.92912032088,596588.92912032083,null,null,62138174,"TESTING 106","PT 07 AGUNG UTAMA",324988.92912032088,596588.92912032083,1.8357207758897081,"Completed"]
[62145959,"TESTING 35","PT 04 PRIMA INDUSTRI",480000,1255200,null,null,62145959,"TESTING 35","PT 04 PRIMA INDUSTRI",480000,1255200,2.6150000000000002,"Completed"]
[62147394,"TESTING 120","PT 08 KIRANA PRINT BERSAMA",0,0,null,null,62147394,"TESTING 120","PT 08 KIRANA PRINT BERSAMA",0,0,"no buffer stock target","no buffer stock target"]
[62176846,"TESTING 51","PT 04 PRIMA INDUSTRI",86400,172800,null,null,62176846,"TESTING 51","PT 04 PRIMA INDUSTRI",86400,172800,2,"Completed"]
[62176898,"TESTING 67","PT 06 INTAN PERMATA",0,null,null,null,62176898,"TESTING 67","PT 06 INTAN PERMATA",0,0,"no buffer stock target","no buffer stock target"]
[62178498,"TESTING 36","PT 04 PRIMA INDUSTRI",194400,460800,null,null,62178498,"TESTING 36","PT 04 PRIMA INDUSTRI",194400,460800,2.3703703703703702,"Completed"]
[62178511,"TESTING 37","PT 04 PRIMA INDUSTRI",85100,0,null,null,62178511,"TESTING 37","PT 04 PRIMA INDUSTRI",85100,0,0,"In Progress"]
[62179445,"TESTING 68","PT 06 INTAN PERMATA",0,null,null,null,62179445,"TESTING 68","PT 06 INTAN PERMATA",0,0,"no buffer stock target","no buffer stock target"]
[62179446,"TESTING 69","PT 06 INTAN PERMATA",0,null,null,null,62179446,"TESTING 69","PT 06 INTAN PERMATA",0,0,"no buffer stock target","no buffer stock target"]
[62179863,"TESTING 38","PT 04 PRIMA INDUSTRI",192000,336000,null,null,62179863,"TESTING 38","PT 04 PRIMA INDUSTRI",192000,336000,1.75,"Completed"]
[62179867,"TESTING 39","PT 04 PRIMA INDUSTRI",72000,340800,null,null,62179867,"TESTING 39","PT 04 PRIMA INDUSTRI",72000,340800,4.7333333333333334,"Completed"]
[62179868,"TESTING 40","PT 04 PRIMA INDUSTRI",124800,76800,null,null,62179868,"TESTING 40","PT 04 PRIMA INDUSTRI",124800,76800,0.61538461538461542,"In Progress"]
[62876704,"TESTING 157","PT 09 BERDAYA CIPTA BUNGKUS",0.81,1.67,null,null,62876704,"TESTING 157","PT 09 BERDAYA CIPTA BUNGKUS",0.81,1.67,2.0617283950617282,"Completed"]
[62878109,"TESTING 212","PT 12 LAPAK PEMULA",186.63276470588235,389.22300000000001,null,null,62878109,"TESTING 212","PT 12 LAPAK PEMULA",186.63276470588235,389.22300000000001,2.0855019782479403,"Completed"]
[62878112,"TESTING 213","PT 12 LAPAK PEMULA",146.88252941176472,582.89800000000002,null,null,62878112,"TESTING 213","PT 12 LAPAK PEMULA",146.88252941176472,582.89800000000002,3.9684637943967225,"Completed"]
[62888335,"TESTING 107","PT 07 AGUNG UTAMA",720263.5914332784,918263.5914332784,null,null,62888335,"TESTING 107","PT 07 AGUNG UTAMA",720263.5914332784,918263.5914332784,1.2748993595608418,"Completed"]
[62888461,"TESTING 198","PT 11 BUNGA KRISANTHIUM OFFSET",120,120,null,null,62888461,"TESTING 198","PT 11 BUNGA KRISANTHIUM OFFSET",120,120,1,"Completed"]
[62888482,"TESTING 199","PT 11 BUNGA KRISANTHIUM OFFSET",180,180,null,null,62888482,"TESTING 199","PT 11 BUNGA KRISANTHIUM OFFSET",180,180,1,"Completed"]
[62888804,"TESTING 70","PT 06 INTAN PERMATA",600,0,null,null,62888804,"TESTING 70","PT 06 INTAN PERMATA",600,0,0,"In Progress"]
[67007478,"TESTING 243","PT 13 PRIMA MASTER LABEL",150,150,null,null,67007478,"TESTING 243","PT 13 PRIMA MASTER LABEL",150,150,1,"Completed"]
[67007480,"TESTING 244","PT 13 PRIMA MASTER LABEL",0,0,null,null,67007480,"TESTING 244","PT 13 PRIMA MASTER LABEL",0,0,"no buffer stock target","no buffer stock target"]
[67007482,"TESTING 245","PT 13 PRIMA MASTER LABEL",0,0,null,null,67007482,"TESTING 245","PT 13 PRIMA MASTER LABEL",0,0,"no buffer stock target","no buffer stock target"]
[67007484,"TESTING 246","PT 13 PRIMA MASTER LABEL",150,210,null,null,67007484,"TESTING 246","PT 13 PRIMA MASTER LABEL",150,210,1.4,"Completed"]
[67008388,"TESTING 247","PT 13 PRIMA MASTER LABEL",0,0,null,null,67008388,"TESTING 247","PT 13 PRIMA MASTER LABEL",0,0,"no buffer stock target","no buffer stock target"]
[67008390,"TESTING 248","PT 13 PRIMA MASTER LABEL",300,440,null,null,67008390,"TESTING 248","PT 13 PRIMA MASTER LABEL",300,440,1.4666666666666666,"Completed"]
[67008404,"TESTING 249","PT 13 PRIMA MASTER LABEL",300,340,null,null,67008404,"TESTING 249","PT 13 PRIMA MASTER LABEL",300,340,1.1333333333333333,"Completed"]
[67008408,"TESTING 250","PT 13 PRIMA MASTER LABEL",0,0,null,null,67008408,"TESTING 250","PT 13 PRIMA MASTER LABEL",0,0,"no buffer stock target","no buffer stock target"]
[67008412,"TESTING 251","PT 13 PRIMA MASTER LABEL",500,1120,null,null,67008412,"TESTING 251","PT 13 PRIMA MASTER LABEL",500,1120,2.2400000000000002,"Completed"]
[67008414,"TESTING 252","PT 13 PRIMA MASTER LABEL",0,0,null,null,67008414,"TESTING 252","PT 13 PRIMA MASTER LABEL",0,0,"no buffer stock target","no buffer stock target"]
[67008416,"TESTING 253","PT 13 PRIMA MASTER LABEL",250,620,null,null,67008416,"TESTING 253","PT 13 PRIMA MASTER LABEL",250,620,2.48,"Completed"]
[67008418,"TESTING 254","PT 13 PRIMA MASTER LABEL",250,270,null,null,67008418,"TESTING 254","PT 13 PRIMA MASTER LABEL",250,270,1.08,"Completed"]
[67008426,"TESTING 255","PT 13 PRIMA MASTER LABEL",0,0,null,null,67008426,"TESTING 255","PT 13 PRIMA MASTER LABEL",0,0,"no buffer stock target","no buffer stock target"]
[67008434,"TESTING 256","PT 13 PRIMA MASTER LABEL",0,0,null,null,67008434,"TESTING 256","PT 13 PRIMA MASTER LABEL",0,0,"no buffer stock target","no buffer stock target"]
[67008436,"TESTING 257","PT 13 PRIMA MASTER LABEL",0,0,null,null,{"$f":"A107","v":67008436},"TESTING 257","PT 13 PRIMA MASTER LABEL",0,0,"no buffer stock target","no buffer stock target"]
[67008477,"TESTING 258","PT 13 PRIMA MASTER LABEL",150,300,null,null,67008477,"TESTING 258","PT 13 PRIMA MASTER LABEL",150,300,2,"Completed"]
[67008479,"TESTING 259","PT 13 PRIMA MASTER LABEL",300,410,null,null,67008479,"TESTING 259","PT 13 PRIMA MASTER LABEL",300,410,1.3666666666666667,"Completed"]
[67008481,"TESTING 260","PT 13 PRIMA MASTER LABEL",0,0,null,null,67008481,"TESTING 260","PT 13 PRIMA MASTER LABEL",0,0,"no buffer stock target","no buffer stock target"]
[67008483,"TESTING 261","PT 13 PRIMA MASTER LABEL",250,590,null,null,67008483,"TESTING 261","PT 13 PRIMA MASTER LABEL",250,590,2.36,"Completed"]
[67008485,"TESTING 262","PT 13 PRIMA MASTER LABEL",0,0,null,null,67008485,"TESTING 262","PT 13 PRIMA MASTER LABEL",0,0,"no buffer stock target","no buffer stock target"]
[67008491,"TESTING 263","PT 13 PRIMA MASTER LABEL",0,0,null,null,67008491,"TESTING 263","PT 13 PRIMA MASTER LABEL",0,0,"no buffer stock target","no buffer stock target"]
[67008495,"TESTING 264","PT 13 PRIMA MASTER LABEL",150,290,null,null,67008495,"TESTING 264","PT 13 PRIMA MASTER LABEL",150,290,1.9333333333333333,"Completed"]
[67008497,"TESTING 265","PT 13 PRIMA MASTER LABEL",300,350,null,null,67008497,"TESTING 265","PT 13 PRIMA MASTER LABEL",300,350,1.1666666666666667,"Completed"]
[67008501,"TESTING 266","PT 13 PRIMA MASTER LABEL",0,0,null,null,67008501,"TESTING 266","PT 13 PRIMA MASTER LABEL",0,0,"no buffer stock target","no buffer stock target"]
[67008504,"TESTING 267","PT 13 PRIMA MASTER LABEL",150,0,null,null,67008504,"TESTING 267","PT 13 PRIMA MASTER LABEL",150,0,0,"In Progress"]
[67008506,"TESTING 268","PT 13 PRIMA MASTER LABEL",0,0,null,null,67008506,"TESTING 268","PT 13 PRIMA MASTER LABEL",0,0,"no buffer stock target","no buffer stock target"]
[67008510,"TESTING 269","PT 13 PRIMA MASTER LABEL",750,1230,null,null,67008510,"TESTING 269","PT 13 PRIMA MASTER LABEL",750,1230,1.64,"Completed"]
[67008512,"TESTING 270","PT 13 PRIMA MASTER LABEL",800,1180,null,null,67008512,"TESTING 270","PT 13 PRIMA MASTER LABEL",800,1180,1.4750000000000001,"Completed"]
[67012293,"TESTING 71","PT 06 INTAN PERMATA",0,null,null,null,67012293,"TESTING 71","PT 06 INTAN PERMATA",0,0,"no buffer stock target","no buffer stock target"]
[67014067,"TESTING 72","PT 06 INTAN PERMATA",0,null,null,null,67014067,"TESTING 72","PT 06 INTAN PERMATA",0,0,"no buffer stock target","no buffer stock target"]
[67014189,"TESTING 200","PT 11 BUNGA KRISANTHIUM OFFSET",0,null,null,null,67014189,"TESTING 200","PT 11 BUNGA KRISANTHIUM OFFSET",0,0,"no buffer stock target","no buffer stock target"]
[67015448,"TESTING 111","PT 08 KIRANA PRINT BERSAMA",151300,307300,null,null,67015448,"TESTING 111","PT 08 KIRANA PRINT BERSAMA",151300,307300,2.0310641110376735,"Completed"]
[67018102,"TESTING 271","PT 13 PRIMA MASTER LABEL",150,200,null,null,67018102,"TESTING 271","PT 13 PRIMA MASTER LABEL",150,200,1.3333333333333333,"Completed"]
[67019746,"TESTING 73","PT 06 INTAN PERMATA",200,0,null,null,67019746,"TESTING 73","PT 06 INTAN PERMATA",200,0,0,"In Progress"]
[67019812,"TESTING 74","PT 06 INTAN PERMATA",150,0,null,null,67019812,"TESTING 74","PT 06 INTAN PERMATA",150,0,0,"In Progress"]
[67019816,"TESTING 75","PT 06 INTAN PERMATA",61,0,null,null,67019816,"TESTING 75","PT 06 INTAN PERMATA",61,0,0,"In Progress"]
[67019830,"TESTING 76","PT 06 INTAN PERMATA",300,0,null,null,67019830,"TESTING 76","PT 06 INTAN PERMATA",300,0,0,"In Progress"]
[67019836,"TESTING 77","PT 06 INTAN PERMATA",106,0,null,null,67019836,"TESTING 77","PT 06 INTAN PERMATA",106,0,0,"In Progress"]
[67019840,"TESTING 78","PT 06 INTAN PERMATA",300,0,null,null,67019840,"TESTING 78","PT 06 INTAN PERMATA",300,0,0,"In Progress"]
[67019861,"TESTING 79","PT 06 INTAN PERMATA",58.800000000000004,0,null,null,67019861,"TESTING 79","PT 06 INTAN PERMATA",58.800000000000004,0,0,"In Progress"]
[67019888,"TESTING 80","PT 06 INTAN PERMATA",58.800000000000004,0,null,null,67019888,"TESTING 80","PT 06 INTAN PERMATA",58.800000000000004,0,{"$f":"IF(K133=0,\"no buffer stock target\",IFERROR(L133/K133,\"NA\"))","v":0},{"$f":"IF(M133=\"no buffer stock target\",\"no buffer stock target\",(IF(M133>=80%,\"Completed\",\"In Progress\")))","v":"In Progress"}]
[67020427,"TESTING 81","PT 06 INTAN PERMATA",28.8,0,null,null,67020427,"TESTING 81","PT 06 INTAN PERMATA",28.8,0,0,"In Progress"]
[67021739,"TESTING 158","PT 09 BERDAYA CIPTA BUNGKUS",47.982506704650397,0,null,null,67021739,"TESTING 158","PT 09 BERDAYA CIPTA BUNGKUS",47.982506704650397,0,0,"In Progress"]
[67024051,"TESTING 82","PT 06 INTAN PERMATA",58.800000000000004,0,null,null,67024051,"TESTING 82","PT 06 INTAN PERMATA",58.800000000000004,0,0,"In Progress"]
[67025457,"TESTING 132","PT 08 KIRANA PRINT BERSAMA",0,0,null,null,67025457,"TESTING 132","PT 08 KIRANA PRINT BERSAMA",0,0,"no buffer stock target","no buffer stock target"]
[67025459,"TESTING 133","PT 08 KIRANA PRINT BERSAMA",0,0,null,null,67025459,"TESTING 133","PT 08 KIRANA PRINT BERSAMA",0,0,"no buffer stock target","no buffer stock target"]
[67027619,"TESTING 05","PT 01 FLEXIBLES INDONESIA",24000,4000,null,null,67027619,"TESTING 05","PT 01 FLEXIBLES INDONESIA",24000,4000,0.16666666666666666,"In Progress"]
[67028809,"TESTING 130","PT 08 KIRANA PRINT BERSAMA",0,0,null,null,67028809,"TESTING 130","PT 08 KIRANA PRINT BERSAMA",0,0,"no buffer stock target","no buffer stock target"]
[67028813,"TESTING 131","PT 08 KIRANA PRINT BERSAMA",0,0,null,null,67028813,"TESTING 131","PT 08 KIRANA PRINT BERSAMA",0,0,"no buffer stock target","no buffer stock target"]
[67030051,"TESTING 83","PT 06 INTAN PERMATA",281.0897592607871,0,null,null,67030051,"TESTING 83","PT 06 INTAN PERMATA",281.0897592607871,0,0,"In Progress"]
[67030055,"TESTING 84","PT 06 INTAN PERMATA",463.29811044867472,0,null,null,67030055,"TESTING 84","PT 06 INTAN PERMATA",463.29811044867472,0,0,"In Progress"]
[67030059,"TESTING 85","PT 06 INTAN PERMATA",499.02952941176471,0,null,null,67030059,"TESTING 85","PT 06 INTAN PERMATA",499.02952941176471,0,0,"In Progress"]
[67032707,"TESTING 214","PT 12 LAPAK PEMULA",0,0,null,null,67032707,"TESTING 214","PT 12 LAPAK PEMULA",0,0,"no buffer stock target","no buffer stock target"]
[67032925,"TESTING 159","PT 09 BERDAYA CIPTA BUNGKUS",0,null,null,null,67032925,"TESTING 159","PT 09 BERDAYA CIPTA BUNGKUS",0,0,"no buffer stock target","no buffer stock target"]
[67041434,"TESTING 86","PT 06 INTAN PERMATA",111.60000000000001,0,null,null,67041434,"TESTING 86","PT 06 INTAN PERMATA",111.60000000000001,0,0,"In Progress"]
[67041488,"TESTING 87","PT 06 INTAN PERMATA",0,null,null,null,67041488,"TESTING 87","PT 06 INTAN PERMATA",0,0,"no buffer stock target","no buffer stock target"]
[67043570,"TESTING 88","PT 06 INTAN PERMATA",84,0,null,null,67043570,"TESTING 88","PT 06 INTAN PERMATA",84,0,0,"In Progress"]
[67043572,"TESTING 89","PT 06 INTAN PERMATA",29,0,null,null,67043572,"TESTING 89","PT 06 INTAN PERMATA",29,0,0,"In Progress"]
[67043590,"TESTING 90","PT 06 INTAN PERMATA",18,0,null,null,67043590,"TESTING 90","PT 06 INTAN PERMATA",18,0,0,"In Progress"]
[67043592,"TESTING 91","PT 06 INTAN PERMATA",18,0,null,null,67043592,"TESTING 91","PT 06 INTAN PERMATA",18,0,0,"In Progress"]
[67044831,"TESTING 215","PT 12 LAPAK PEMULA",0,null,null,null,67044831,"TESTING 215","PT 12 LAPAK PEMULA",0,0,"no buffer stock target","no buffer stock target"]
[67044833,"TESTING 216","PT 12 LAPAK PEMULA",0,null,null,null,67044833,"TESTING 216","PT 12 LAPAK PEMULA",0,0,"no buffer stock target","no buffer stock target"]
[67044890,"TESTING 217","PT 12 LAPAK PEMULA",0,null,null,null,67044890,"TESTING 217","PT 12 LAPAK PEMULA",0,0,"no buffer stock target","no buffer stock target"]
[67045403,"TESTING 92","PT 06 INTAN PERMATA",58.800000000000004,0,null,null,67045403,"TESTING 92","PT 06 INTAN PERMATA",58.800000000000004,0,0,"In Progress"]
[67048538,"TESTING 160","PT 09 BERDAYA CIPTA BUNGKUS",0,null,null,null,67048538,"TESTING 160","PT 09 BERDAYA CIPTA BUNGKUS",0,0,"no buffer stock target","no buffer stock target"]
[67054396,"TESTING 161","PT 09 BERDAYA CIPTA BUNGKUS",0,null,null,null,{"$f":"A158","v":67054396},"TESTING 161","PT 09 BERDAYA CIPTA BUNGKUS",0,0,"no buffer stock target","no buffer stock target"]
[67056598,"TESTING 22","PT 02 RUPA RUPA  PT.",0,null,null,null,67056598,"TESTING 22","PT 02 RUPA RUPA  PT.",0,0,"no buffer stock target","no buffer stock target"]
[67056642,"TESTING 21","PT 02 RUPA RUPA  PT.",30,null,null,null,67056642,"TESTING 21","PT 02 RUPA RUPA  PT.",30,0,0,"In Progress"]
[67056654,"TESTING 18","PT 02 RUPA RUPA  PT.",0,null,null,null,67056654,"TESTING 18","PT 02 RUPA RUPA  PT.",0,0,"no buffer stock target","no buffer stock target"]
[67056658,"TESTING 19","PT 02 RUPA RUPA  PT.",0,null,null,null,67056658,"TESTING 19","PT 02 RUPA RUPA  PT.",0,0,"no buffer stock target","no buffer stock target"]
[67056662,"TESTING 305","PT 13 PRIMA MASTER LABEL",0,0,null,null,67056662,"TESTING 305","PT 13 PRIMA MASTER LABEL",0,0,"no buffer stock target","no buffer stock target"]
[67056668,"TESTING 27","PT 02 RUPA RUPA  PT.",0,null,null,null,67056668,"TESTING 27","PT 02 RUPA RUPA  PT.",0,0,"no buffer stock target","no buffer stock target"]
[67057356,"TESTING 162","PT 09 BERDAYA CIPTA BUNGKUS",0,null,null,null,67057356,"TESTING 162","PT 09 BERDAYA CIPTA BUNGKUS",0,0,"no buffer stock target","no buffer stock target"]
[67057376,"TESTING 163","PT 09 BERDAYA CIPTA BUNGKUS",0,null,null,null,67057376,"TESTING 163","PT 09 BERDAYA CIPTA BUNGKUS",0,0,"no buffer stock target","no buffer stock target"]
[67058433,"TESTING 201","PT 11 BUNGA KRISANTHIUM OFFSET",960.87,1200,null,null,67058433,"TESTING 201","PT 11 BUNGA KRISANTHIUM OFFSET",960.87,1200,1.2488682131818041,"Completed"]
[67058438,"TESTING 218","PT 12 LAPAK PEMULA",528,1391.3710000000001,null,null,67058438,"TESTING 218","PT 12 LAPAK PEMULA",528,1391.3710000000001,2.6351723484848488,"Completed"]
[67058444,"TESTING 219","PT 12 LAPAK PEMULA",525,979.16099999999994,null,null,67058444,"TESTING 219","PT 12 LAPAK PEMULA",525,979.16099999999994,1.8650685714285713,"Completed"]
[67058455,"TESTING 202","PT 11 BUNGA KRISANTHIUM OFFSET",317.05,868,null,null,67058455,"TESTING 202","PT 11 BUNGA KRISANTHIUM OFFSET",317.05,868,2.7377385270462069,"Completed"]
[67058457,"TESTING 220","PT 12 LAPAK PEMULA",138.27447790691772,359.33199999999999,null,null,67058457,"TESTING 220","PT 12 LAPAK PEMULA",138.27447790691772,359.33199999999999,2.5986863623661023,"Completed"]
[67058461,"TESTING 203","PT 11 BUNGA KRISANTHIUM OFFSET",0,552.4,null,null,67058461,"TESTING 203","PT 11 BUNGA KRISANTHIUM OFFSET",0,552.4,"no buffer stock target","no buffer stock target"]
[67058463,"TESTING 221","PT 12 LAPAK PEMULA",190.55938651062522,834.74599999999998,null,null,67058463,"TESTING 221","PT 12 LAPAK PEMULA",190.55938651062522,834.74599999999998,4.38050318740639,"Completed"]
[67058468,"TESTING 204","PT 11 BUNGA KRISANTHIUM OFFSET",0,46.4,null,null,67058468,"TESTING 204","PT 11 BUNGA KRISANTHIUM OFFSET",0,46.4,"no buffer stock target","no buffer stock target"]
[67059288,"TESTING 222","PT 12 LAPAK PEMULA",90,308.36,null,null,67059288,"TESTING 222","PT 12 LAPAK PEMULA",90,308.36,3.4262222222222225,"Completed"]
[67059294,"TESTING 223","PT 12 LAPAK PEMULA",84,213.85,null,null,67059294,"TESTING 223","PT 12 LAPAK PEMULA",84,213.85,2.5458333333333334,"Completed"]
[67059300,"TESTING 224","PT 12 LAPAK PEMULA",120,0,null,null,67059300,"TESTING 224","PT 12 LAPAK PEMULA",120,0,0,"In Progress"]
[67062331,"TESTING 129","PT 08 KIRANA PRINT BERSAMA",0,0,null,null,67062331,"TESTING 129","PT 08 KIRANA PRINT BERSAMA",0,0,"no buffer stock target","no buffer stock target"]
[67062342,"TESTING 135","PT 08 KIRANA PRINT BERSAMA",0,0,null,null,67062342,"TESTING 135","PT 08 KIRANA PRINT BERSAMA",0,0,"no buffer stock target","no buffer stock target"]
[67062444,"TESTING 122","PT 08 KIRANA PRINT BERSAMA",0,0,null,null,67062444,"TESTING 122","PT 08 KIRANA PRINT BERSAMA",0,0,"no buffer stock target","no buffer stock target"]
[67062449,"TESTING 124","PT 08 KIRANA PRINT BERSAMA",0,0,null,null,67062449,"TESTING 124","PT 08 KIRANA PRINT BERSAMA",0,0,"no buffer stock target","no buffer stock target"]
[67062462,"TESTING 126","PT 08 KIRANA PRINT BERSAMA",0,0,null,null,67062462,"TESTING 126","PT 08 KIRANA PRINT BERSAMA",0,0,"no buffer stock target","no buffer stock target"]
[67062475,"TESTING 125","PT 08 KIRANA PRINT BERSAMA",0,0,null,null,67062475,"TESTING 125","PT 08 KIRANA PRINT BERSAMA",0,0,"no buffer stock target","no buffer stock target"]
[67062483,"TESTING 123","PT 08 KIRANA PRINT BERSAMA",0,0,null,null,67062483,"TESTING 123","PT 08 KIRANA PRINT BERSAMA",0,0,"no buffer stock target","no buffer stock target"]
[67062498,"TESTING 128","PT 08 KIRANA PRINT BERSAMA",0,0,null,null,67062498,"TESTING 128","PT 08 KIRANA PRINT BERSAMA",0,0,"no buffer stock target","no buffer stock target"]
[67062516,"TESTING 127","PT 08 KIRANA PRINT BERSAMA",0,0,null,null,67062516,"TESTING 127","PT 08 KIRANA PRINT BERSAMA",0,0,"no buffer stock target","no buffer stock target"]
[67065980,"TESTING 164","PT 09 BERDAYA CIPTA BUNGKUS",85.395294611404097,0,null,null,67065980,"TESTING 164","PT 09 BERDAYA CIPTA BUNGKUS",85.395294611404097,0,0,"In Progress"]
[67066062,"TESTING 302","PT 13 PRIMA MASTER LABEL",60,129.97,null,null,67066062,"TESTING 302","PT 13 PRIMA MASTER LABEL",60,129.97,2.1661666666666668,"Completed"]
[67067127,"TESTING 165","PT 09 BERDAYA CIPTA BUNGKUS",0,null,null,null,67067127,"TESTING 165","PT 09 BERDAYA CIPTA BUNGKUS",0,0,"no buffer stock target","no buffer stock target"]
[67067199,"TESTING 117","PT 08 KIRANA PRINT BERSAMA",0,0,null,null,67067199,"TESTING 117","PT 08 KIRANA PRINT BERSAMA",0,0,"no buffer stock target","no buffer stock target"]
[67067550,"TESTING 41","PT 04 PRIMA INDUSTRI",0,null,null,null,67067550,"TESTING 41","PT 04 PRIMA INDUSTRI",0,0,"no buffer stock target","no buffer stock target"]
[67067568,"TESTING 42","PT 04 PRIMA INDUSTRI",0,null,null,null,67067568,"TESTING 42","PT 04 PRIMA INDUSTRI",0,0,"no buffer stock target","no buffer stock target"]
[67067570,"TESTING 298","PT 13 PRIMA MASTER LABEL",0,120,null,null,67067570,"TESTING 298","PT 13 PRIMA MASTER LABEL",0,120,"no buffer stock target","no buffer stock target"]
[67067582,"TESTING 43","PT 04 PRIMA INDUSTRI",0,null,null,null,67067582,"TESTING 43","PT 04 PRIMA INDUSTRI",0,0,"no buffer stock target","no buffer stock target"]
[67067588,"TESTING 296","PT 13 PRIMA MASTER LABEL",0,165,null,null,67067588,"TESTING 296","PT 13 PRIMA MASTER LABEL",0,165,"no buffer stock target","no buffer stock target"]
[67069843,"TESTING 16","PT 02 RUPA RUPA  PT.",0,null,null,null,67069843,"TESTING 16","PT 02 RUPA RUPA  PT.",0,0,"no buffer stock target","no buffer stock target"]
[67069847,"TESTING 17","PT 02 RUPA RUPA  PT.",0,null,null,null,67069847,"TESTING 17","PT 02 RUPA RUPA  PT.",0,0,{"$f":"IF(K197=0,\"no buffer stock target\",IFERROR(L197/K197,\"NA\"))","v":"no buffer stock target"},{"$f":"IF(M197=\"no buffer stock target\",\"no buffer stock target\",(IF(M197>=80%,\"Completed\",\"In Progress\")))","v":"no buffer stock target"}]
[67070194,"TESTING 272","PT 13 PRIMA MASTER LABEL",300,450,null,null,67070194,"TESTING 272","PT 13 PRIMA MASTER LABEL",300,450,1.5,"Completed"]
[67070203,"TESTING 312","PT 13 PRIMA MASTER LABEL",150,230,null,null,67070203,"TESTING 312","PT 13 PRIMA MASTER LABEL",150,230,1.5333333333333334,"Completed"]
[67070384,"TESTING 20","PT 02 RUPA RUPA  PT.",0,null,null,null,67070384,"TESTING 20","PT 02 RUPA RUPA  PT.",0,0,"no buffer stock target","no buffer stock target"]
[67070396,"TESTING 301","PT 13 PRIMA MASTER LABEL",0,20,null,null,67070396,"TESTING 301","PT 13 PRIMA MASTER LABEL",0,20,"no buffer stock target","no buffer stock target"]
[67072842,"TESTING 23","PT 02 RUPA RUPA  PT.",0,null,null,null,67072842,"TESTING 23","PT 02 RUPA RUPA  PT.",0,0,"no buffer stock target","no buffer stock target"]
[67072856,"TESTING 26","PT 02 RUPA RUPA  PT.",0,null,null,null,67072856,"TESTING 26","PT 02 RUPA RUPA  PT.",0,0,"no buffer stock target","no buffer stock target"]
[67072868,"TESTING 24","PT 02 RUPA RUPA  PT.",0,null,null,null,67072868,"TESTING 24","PT 02 RUPA RUPA  PT.",0,0,"no buffer stock target","no buffer stock target"]
[67072874,"TESTING 25","PT 02 RUPA RUPA  PT.",0,null,null,null,67072874,"TESTING 25","PT 02 RUPA RUPA  PT.",0,0,"no buffer stock target","no buffer stock target"]
[67074839,"TESTING 93","PT 06 INTAN PERMATA",111.6,0,null,null,67074839,"TESTING 93","PT 06 INTAN PERMATA",111.6,0,0,"In Progress"]
[67074845,"TESTING 94","PT 06 INTAN PERMATA",134.4,0,null,null,67074845,"TESTING 94","PT 06 INTAN PERMATA",134.4,0,0,"In Progress"]
[67074851,"TESTING 95","PT 06 INTAN PERMATA",55.800000000000004,0,null,null,67074851,"TESTING 95","PT 06 INTAN PERMATA",55.800000000000004,0,0,"In Progress"]
[67074876,"TESTING 96","PT 06 INTAN PERMATA",134.4,0,null,null,{"$f":"A209","v":67074876},"TESTING 96","PT 06 INTAN PERMATA",134.4,0,0,"In Progress"]
[67074911,"TESTING 97","PT 06 INTAN PERMATA",111.6,0,null,null,67074911,"TESTING 97","PT 06 INTAN PERMATA",111.6,0,0,"In Progress"]
[67074924,"TESTING 98","PT 06 INTAN PERMATA",55.800000000000004,0,null,null,67074924,"TESTING 98","PT 06 INTAN PERMATA",55.800000000000004,0,0,"In Progress"]
[67076378,"TESTING 121","PT 08 KIRANA PRINT BERSAMA",0,0,null,null,67076378,"TESTING 121","PT 08 KIRANA PRINT BERSAMA",0,0,"no buffer stock target","no buffer stock target"]
[67076380,"TESTING 119","PT 08 KIRANA PRINT BERSAMA",0,0,null,null,67076380,"TESTING 119","PT 08 KIRANA PRINT BERSAMA",0,0,"no buffer stock target","no buffer stock target"]
[67077587,"TESTING 225","PT 12 LAPAK PEMULA",394.58700000000016,280.29700000000003,null,null,67077587,"TESTING 225","PT 12 LAPAK PEMULA",394.58700000000016,280.29700000000003,0.71035538423718958,"In Progress"]
[67077591,"TESTING 226","PT 12 LAPAK PEMULA",348.75900000000001,186252,null,null,67077591,"TESTING 226","PT 12 LAPAK PEMULA",348.75900000000001,186252,534.0421322460495,"Completed"]
[67077595,"TESTING 227","PT 12 LAPAK PEMULA",366.11999999999995,689.423,null,null,67077595,"TESTING 227","PT 12 LAPAK PEMULA",366.11999999999995,689.423,1.8830520048071673,"Completed"]
[67079467,"TESTING 12","PT 02 RUPA RUPA  PT.",0,null,null,null,67079467,"TESTING 12","PT 02 RUPA RUPA  PT.",0,0,"no buffer stock target","no buffer stock target"]
[67079471,"TESTING 13","PT 02 RUPA RUPA  PT.",80,null,null,null,67079471,"TESTING 13","PT 02 RUPA RUPA  PT.",80,0,0,"In Progress"]
[67079473,"TESTING 14","PT 02 RUPA RUPA  PT.",13.2,null,null,null,67079473,"TESTING 14","PT 02 RUPA RUPA  PT.",13.2,0,0,"In Progress"]
[67079475,"TESTING 15","PT 02 RUPA RUPA  PT.",13.2,null,null,null,67079475,"TESTING 15","PT 02 RUPA RUPA  PT.",13.2,0,0,"In Progress"]
[67079487,"TESTING 273","PT 13 PRIMA MASTER LABEL",120,150,null,null,67079487,"TESTING 273","PT 13 PRIMA MASTER LABEL",120,150,1.25,"Completed"]
[67079489,"TESTING 297","PT 13 PRIMA MASTER LABEL",120,130,null,null,67079489,"TESTING 297","PT 13 PRIMA MASTER LABEL",120,130,1.0833333333333333,"Completed"]
[67081078,"TESTING 205","PT 11 BUNGA KRISANTHIUM OFFSET",0,null,null,null,67081078,"TESTING 205","PT 11 BUNGA KRISANTHIUM OFFSET",0,0,"no buffer stock target","no buffer stock target"]
[67082142,"TESTING 300","PT 13 PRIMA MASTER LABEL",0,30,null,null,67082142,"TESTING 300","PT 13 PRIMA MASTER LABEL",0,30,"no buffer stock target","no buffer stock target"]
[67082187,"TESTING 166","PT 09 BERDAYA CIPTA BUNGKUS",1,2.15,null,null,67082187,"TESTING 166","PT 09 BERDAYA CIPTA BUNGKUS",1,2.15,2.15,"Completed"]
[67082787,"TESTING 108","PT 07 AGUNG UTAMA",336438.92,588438.91999999993,null,null,67082787,"TESTING 108","PT 07 AGUNG UTAMA",336438.92,588438.91999999993,1.7490215460208942,"Completed"]
[67089803,"TESTING 99","PT 06 INTAN PERMATA",58.800000000000004,0,null,null,67089803,"TESTING 99","PT 06 INTAN PERMATA",58.800000000000004,0,0,"In Progress"]
[67096075,"TESTING 167","PT 09 BERDAYA CIPTA BUNGKUS",0,null,null,null,67096075,"TESTING 167","PT 09 BERDAYA CIPTA BUNGKUS",0,0,"no buffer stock target","no buffer stock target"]
[67096643,"TESTING 303","PT 13 PRIMA MASTER LABEL",0,10,null,null,67096643,"TESTING 303","PT 13 PRIMA MASTER LABEL",0,10,"no buffer stock target","no buffer stock target"]
[67096645,"TESTING 306","PT 13 PRIMA MASTER LABEL",0,150,null,null,67096645,"TESTING 306","PT 13 PRIMA MASTER LABEL",0,150,"no buffer stock target","no buffer stock target"]
[67098479,"TESTING 112","PT 08 KIRANA PRINT BERSAMA",2667,9920,null,null,67098479,"TESTING 112","PT 08 KIRANA PRINT BERSAMA",2667,9920,3.7195350581177351,"Completed"]
[67099447,"TESTING 228","PT 12 LAPAK PEMULA",2361,2991.4079999999999,null,null,67099447,"TESTING 228","PT 12 LAPAK PEMULA",2361,2991.4079999999999,1.2670088945362135,"Completed"]
[67102739,"TESTING 44","PT 04 PRIMA INDUSTRI",0,null,null,null,67102739,"TESTING 44","PT 04 PRIMA INDUSTRI",0,0,"no buffer stock target","no buffer stock target"]
[67106976,"TESTING 229","PT 12 LAPAK PEMULA",120,823.005,null,null,67106976,"TESTING 229","PT 12 LAPAK PEMULA",120,823.005,6.8583749999999997,"Completed"]
[67106980,"TESTING 230","PT 12 LAPAK PEMULA",120,1045.605,null,null,67106980,"TESTING 230","PT 12 LAPAK PEMULA",120,1045.605,8.713375000000001,"Completed"]
[67117228,"TESTING 314","PT 13 PRIMA MASTER LABEL",0,200,null,null,67117228,"TESTING 314","PT 13 PRIMA MASTER LABEL",0,200,"no buffer stock target","no buffer stock target"]
[67117229,"TESTING 274","PT 13 PRIMA MASTER LABEL",0,50,null,null,67117229,"TESTING 274","PT 13 PRIMA MASTER LABEL",0,50,"no buffer stock target","no buffer stock target"]
[67117230,"TESTING 316","PT 13 PRIMA MASTER LABEL",150,10,null,null,67117230,"TESTING 316","PT 13 PRIMA MASTER LABEL",150,10,6.6666666666666666E-2,"In Progress"]
[67117231,"TESTING 315","PT 13 PRIMA MASTER LABEL",0,0,null,null,67117231,"TESTING 315","PT 13 PRIMA MASTER LABEL",0,0,"no buffer stock target","no buffer stock target"]
[67117232,"TESTING 275","PT 13 PRIMA MASTER LABEL",0,0,null,null,67117232,"TESTING 275","PT 13 PRIMA MASTER LABEL",0,0,"no buffer stock target","no buffer stock target"]
[67117233,"TESTING 317","PT 13 PRIMA MASTER LABEL",0,0,null,null,67117233,"TESTING 317","PT 13 PRIMA MASTER LABEL",0,0,"no buffer stock target","no buffer stock target"]
[67117913,"TESTING 113","PT 08 KIRANA PRINT BERSAMA",0,null,null,null,67117913,"TESTING 113","PT 08 KIRANA PRINT BERSAMA",0,0,"no buffer stock target","no buffer stock target"]
[67117917,"TESTING 116","PT 08 KIRANA PRINT BERSAMA",0,null,null,null,67117917,"TESTING 116","PT 08 KIRANA PRINT BERSAMA",0,0,"no buffer stock target","no buffer stock target"]
[67117928,"TESTING 231","PT 12 LAPAK PEMULA",121.71683759441494,482.68299999999999,null,null,67117928,"TESTING 231","PT 12 LAPAK PEMULA",121.71683759441494,482.68299999999999,3.965622255224845,"Completed"]
[67117930,"TESTING 232","PT 12 LAPAK PEMULA",180,611.15599999999995,null,null,67117930,"TESTING 232","PT 12 LAPAK PEMULA",180,611.15599999999995,3.3953111111111109,"Completed"]
[67117935,"TESTING 233","PT 12 LAPAK PEMULA",210,720.83699999999999,null,null,67117935,"TESTING 233","PT 12 LAPAK PEMULA",210,720.83699999999999,3.4325571428571426,"Completed"]
[67117937,"TESTING 206","PT 11 BUNGA KRISANTHIUM OFFSET",106.04524886877834,762.5,null,null,67117937,"TESTING 206","PT 11 BUNGA KRISANTHIUM OFFSET",106.04524886877834,762.5,7.1903268475849078,"Completed"]
[67117939,"TESTING 207","PT 11 BUNGA KRISANTHIUM OFFSET",0,776,null,null,67117939,"TESTING 207","PT 11 BUNGA KRISANTHIUM OFFSET",0,776,"no buffer stock target","no buffer stock target"]
[67117941,"TESTING 208","PT 11 BUNGA KRISANTHIUM OFFSET",356.46760698596376,723.4,null,null,67117941,"TESTING 208","PT 11 BUNGA KRISANTHIUM OFFSET",356.46760698596376,723.4,2.0293569059936618,"Completed"]
[67117976,"TESTING 114","PT 08 KIRANA PRINT BERSAMA",0,0,null,null,67117976,"TESTING 114","PT 08 KIRANA PRINT BERSAMA",0,0,"no buffer stock target","no buffer stock target"]
[67118178,"TESTING 168","PT 09 BERDAYA CIPTA BUNGKUS",35,35.28,null,null,67118178,"TESTING 168","PT 09 BERDAYA CIPTA BUNGKUS",35,35.28,1.008,"Completed"]
[67118183,"TESTING 169","PT 09 BERDAYA CIPTA BUNGKUS",35,35.130000000000003,null,null,67118183,"TESTING 169","PT 09 BERDAYA CIPTA BUNGKUS",35,35.130000000000003,1.0037142857142858,"Completed"]
[67118199,"TESTING 170","PT 09 BERDAYA CIPTA BUNGKUS",0,null,null,null,67118199,"TESTING 170","PT 09 BERDAYA CIPTA BUNGKUS",0,0,"no buffer stock target","no buffer stock target"]
[67118418,"TESTING 115","PT 08 KIRANA PRINT BERSAMA",28103,79540,null,null,67118418,"TESTING 115","PT 08 KIRANA PRINT BERSAMA",28103,79540,2.8303028146461231,"Completed"]
[67118559,"TESTING 171","PT 09 BERDAYA CIPTA BUNGKUS",0,null,null,null,67118559,"TESTING 171","PT 09 BERDAYA CIPTA BUNGKUS",0,0,"no buffer stock target","no buffer stock target"]
[67126701,"TESTING 172","PT 09 BERDAYA CIPTA BUNGKUS",1.25,2.4,null,null,67126701,"TESTING 172","PT 09 BERDAYA CIPTA BUNGKUS",1.25,2.4,1.92,"Completed"]
[67126707,"TESTING 173","PT 09 BERDAYA CIPTA BUNGKUS",1.75,3.4,null,null,67126707,"TESTING 173","PT 09 BERDAYA CIPTA BUNGKUS",1.75,3.4,1.9428571428571428,"Completed"]
[67126709,"TESTING 174","PT 09 BERDAYA CIPTA BUNGKUS",0,null,null,null,67126709,"TESTING 174","PT 09 BERDAYA CIPTA BUNGKUS",0,0,"no buffer stock target","no buffer stock target"]
[67139403,"TESTING 310","PT 13 PRIMA MASTER LABEL",150,220,null,null,67139403,"TESTING 310","PT 13 PRIMA MASTER LABEL",150,220,1.4666666666666666,"Completed"]
[67140829,"TESTING 100","PT 06 INTAN PERMATA",111.60000000000001,0,null,null,{"$f":"A260","v":67140829},"TESTING 100","PT 06 INTAN PERMATA",111.60000000000001,0,0,"In Progress"]
[67141315,"TESTING 06","PT 01 FLEXIBLES INDONESIA",0,null,null,null,67141315,"TESTING 06","PT 01 FLEXIBLES INDONESIA",0,0,{"$f":"IF(K261=0,\"no buffer stock target\",IFERROR(L261/K261,\"NA\"))","v":"no buffer stock target"},{"$f":"IF(M261=\"no buffer stock target\",\"no buffer stock target\",(IF(M261>=80%,\"Completed\",\"In Progress\")))","v":"no buffer stock target"}]
[67141317,"TESTING 175","PT 09 BERDAYA CIPTA BUNGKUS",0,null,null,null,67141317,"TESTING 175","PT 09 BERDAYA CIPTA BUNGKUS",0,0,"no buffer stock target","no buffer stock target"]
[67141318,"TESTING 07","PT 01 FLEXIBLES INDONESIA",0,null,null,null,67141318,"TESTING 07","PT 01 FLEXIBLES INDONESIA",0,0,"no buffer stock target","no buffer stock target"]
[67141320,"TESTING 176","PT 09 BERDAYA CIPTA BUNGKUS",0,null,null,null,67141320,"TESTING 176","PT 09 BERDAYA CIPTA BUNGKUS",0,0,"no buffer stock target","no buffer stock target"]
[67151358,"TESTING 45","PT 04 PRIMA INDUSTRI",110,286,null,null,67151358,"TESTING 45","PT 04 PRIMA INDUSTRI",110,286,2.6,"Completed"]
[67151359,"TESTING 46","PT 04 PRIMA INDUSTRI",76.5,0,null,null,67151359,"TESTING 46","PT 04 PRIMA INDUSTRI",76.5,0,0,"In Progress"]
[67154227,"TESTING 238","PT 12 LAPAK PEMULA",120,266.87200000000001,null,null,67154227,"TESTING 238","PT 12 LAPAK PEMULA",120,266.87200000000001,2.2239333333333335,"Completed"]
[67154354,"TESTING 237","PT 12 LAPAK PEMULA",240,1814.0640000000001,null,null,67154354,"TESTING 237","PT 12 LAPAK PEMULA",240,1814.0640000000001,7.5586000000000002,"Completed"]
[67154358,"TESTING 234","PT 12 LAPAK PEMULA",120,194.417,null,null,67154358,"TESTING 234","PT 12 LAPAK PEMULA",120,194.417,1.6201416666666666,"Completed"]
[67154372,"TESTING 239","PT 12 LAPAK PEMULA",105.6,118.753,null,null,67154372,"TESTING 239","PT 12 LAPAK PEMULA",105.6,118.753,1.1245549242424242,"Completed"]
[67154394,"TESTING 304","PT 13 PRIMA MASTER LABEL",60,119.97,null,null,67154394,"TESTING 304","PT 13 PRIMA MASTER LABEL",60,119.97,1.9995000000000001,"Completed"]
[67159709,"TESTING 307","PT 13 PRIMA MASTER LABEL",0,0,null,null,67159709,"TESTING 307","PT 13 PRIMA MASTER LABEL",0,0,"no buffer stock target","no buffer stock target"]
[67164491,"TESTING 52","PT 05 BERKAT DOA PT.",1994,4200,null,null,67164491,"TESTING 52","PT 05 BERKAT DOA PT.",1994,4200,2.106318956870612,"Completed"]
[67179192,"TESTING 276","PT 13 PRIMA MASTER LABEL",0,140,null,null,67179192,"TESTING 276","PT 13 PRIMA MASTER LABEL",0,140,"no buffer stock target","no buffer stock target"]
[67179193,"TESTING 299","PT 13 PRIMA MASTER LABEL",0,130,null,null,67179193,"TESTING 299","PT 13 PRIMA MASTER LABEL",0,130,"no buffer stock target","no buffer stock target"]
[67179199,"TESTING 47","PT 04 PRIMA INDUSTRI",206.4,197,null,null,67179199,"TESTING 47","PT 04 PRIMA INDUSTRI",206.4,197,0.95445736434108519,"Completed"]
[67185013,"TESTING 309","PT 13 PRIMA MASTER LABEL",150,200,null,null,67185013,"TESTING 309","PT 13 PRIMA MASTER LABEL",150,200,1.3333333333333333,"Completed"]
[67185014,"TESTING 308","PT 13 PRIMA MASTER LABEL",150,200,null,null,67185014,"TESTING 308","PT 13 PRIMA MASTER LABEL",150,200,1.3333333333333333,"Completed"]
[67188444,"TESTING 177","PT 09 BERDAYA CIPTA BUNGKUS",122.523725783899,14,null,null,67188444,"TESTING 177","PT 09 BERDAYA CIPTA BUNGKUS",122.523725783899,14,0.11426358372983593,"In Progress"]
[67188450,"TESTING 178","PT 09 BERDAYA CIPTA BUNGKUS",106.689390912601,42,null,null,67188450,"TESTING 178","PT 09 BERDAYA CIPTA BUNGKUS",106.689390912601,42,0.39366613344344636,"In Progress"]
[67193948,"TESTING 295","PT 13 PRIMA MASTER LABEL",0,100,null,null,67193948,"TESTING 295","PT 13 PRIMA MASTER LABEL",0,100,"no buffer stock target","no buffer stock target"]
[67208119,"TESTING 292","PT 13 PRIMA MASTER LABEL",750,1220,null,null,67208119,"TESTING 292","PT 13 PRIMA MASTER LABEL",750,1220,1.6266666666666667,"Completed"]
[67208120,"TESTING 289","PT 13 PRIMA MASTER LABEL",300,390,null,null,67208120,"TESTING 289","PT 13 PRIMA MASTER LABEL",300,390,1.3,"Completed"]
[67208121,"TESTING 288","PT 13 PRIMA MASTER LABEL",150,200,null,null,67208121,"TESTING 288","PT 13 PRIMA MASTER LABEL",150,200,1.3333333333333333,"Completed"]
[67208122,"TESTING 287","PT 13 PRIMA MASTER LABEL",250,400,null,null,67208122,"TESTING 287","PT 13 PRIMA MASTER LABEL",250,400,1.6,"Completed"]
[67208123,"TESTING 291","PT 13 PRIMA MASTER LABEL",150,270,null,null,67208123,"TESTING 291","PT 13 PRIMA MASTER LABEL",150,270,1.8,"Completed"]
[67208124,"TESTING 290","PT 13 PRIMA MASTER LABEL",350,710,null,null,67208124,"TESTING 290","PT 13 PRIMA MASTER LABEL",350,710,2.0285714285714285,"Completed"]
[67208125,"TESTING 279","PT 13 PRIMA MASTER LABEL",150,200,null,null,67208125,"TESTING 279","PT 13 PRIMA MASTER LABEL",150,200,1.3333333333333333,"Completed"]
[67208126,"TESTING 285","PT 13 PRIMA MASTER LABEL",800,1120,null,null,67208126,"TESTING 285","PT 13 PRIMA MASTER LABEL",800,1120,1.4,"Completed"]
[67208127,"TESTING 286","PT 13 PRIMA MASTER LABEL",500,950,null,null,67208127,"TESTING 286","PT 13 PRIMA MASTER LABEL",500,950,1.9,"Completed"]
[67208128,"TESTING 283","PT 13 PRIMA MASTER LABEL",250,290,null,null,67208128,"TESTING 283","PT 13 PRIMA MASTER LABEL",250,290,1.1599999999999999,"Completed"]
[67208129,"TESTING 282","PT 13 PRIMA MASTER LABEL",300,450,null,null,67208129,"TESTING 282","PT 13 PRIMA MASTER LABEL",300,450,1.5,"Completed"]
[67208130,"TESTING 281","PT 13 PRIMA MASTER LABEL",300,330,null,null,67208130,"TESTING 281","PT 13 PRIMA MASTER LABEL",300,330,1.1000000000000001,"Completed"]
[67208131,"TESTING 284","PT 13 PRIMA MASTER LABEL",250,535,null,null,67208131,"TESTING 284","PT 13 PRIMA MASTER LABEL",250,535,2.14,"Completed"]
[67208132,"TESTING 280","PT 13 PRIMA MASTER LABEL",150,250,null,null,67208132,"TESTING 280","PT 13 PRIMA MASTER LABEL",150,250,1.6666666666666667,"Completed"]
[67214037,"TESTING 277","PT 13 PRIMA MASTER LABEL",150,200,null,null,67214037,"TESTING 277","PT 13 PRIMA MASTER LABEL",150,200,1.3333333333333333,"Completed"]
[67214040,"TESTING 278","PT 13 PRIMA MASTER LABEL",300,470,null,null,67214040,"TESTING 278","PT 13 PRIMA MASTER LABEL",300,470,1.5666666666666667,"Completed"]
[67214042,"TESTING 313","PT 13 PRIMA MASTER LABEL",150,210,null,null,67214042,"TESTING 313","PT 13 PRIMA MASTER LABEL",150,210,1.4,"Completed"]
[67214044,"TESTING 311","PT 13 PRIMA MASTER LABEL",150,250,null,null,67214044,"TESTING 311","PT 13 PRIMA MASTER LABEL",150,250,1.6666666666666667,"Completed"]
[67214104,"TESTING 293","PT 13 PRIMA MASTER LABEL",0,90,null,null,67214104,"TESTING 293","PT 13 PRIMA MASTER LABEL",0,90,"no buffer stock target","no buffer stock target"]
[67242420,"TESTING 235","PT 12 LAPAK PEMULA",90,92.387,null,null,67242420,"TESTING 235","PT 12 LAPAK PEMULA",90,92.387,1.0265222222222223,"Completed"]
[67242425,"TESTING 236","PT 12 LAPAK PEMULA",60,0,null,null,67242425,"TESTING 236","PT 12 LAPAK PEMULA",60,0,0,"In Progress"]
[67244044,"TESTING 185","PT 09 BERDAYA CIPTA BUNGKUS",6.327,6.4,null,null,67244044,"TESTING 185","PT 09 BERDAYA CIPTA BUNGKUS",6.327,6.4,1.0115378536431168,"Completed"]
[67244050,"TESTING 182","PT 09 BERDAYA CIPTA BUNGKUS",2.52,2.62,null,null,67244050,"TESTING 182","PT 09 BERDAYA CIPTA BUNGKUS",2.52,2.62,1.0396825396825398,"Completed"]
[67255207,"TESTING 188","PT 09 BERDAYA CIPTA BUNGKUS",6.72,6.81,null,null,67255207,"TESTING 188","PT 09 BERDAYA CIPTA BUNGKUS",6.72,6.81,1.0133928571428572,"Completed"]
[67255213,"TESTING 189","PT 09 BERDAYA CIPTA BUNGKUS",4.3600000000000003,8.7899999999999991,null,null,67255213,"TESTING 189","PT 09 BERDAYA CIPTA BUNGKUS",4.3600000000000003,8.7899999999999991,2.0160550458715591,"Completed"]
[67255216,"TESTING 190","PT 09 BERDAYA CIPTA BUNGKUS",0.28999999999999998,0.8,null,null,67255216,"TESTING 190","PT 09 BERDAYA CIPTA BUNGKUS",0.28999999999999998,0.8,2.7586206896551726,"Completed"]
[67255948,"TESTING 179","PT 09 BERDAYA CIPTA BUNGKUS",9,9.1300000000000008,null,null,67255948,"TESTING 179","PT 09 BERDAYA CIPTA BUNGKUS",9,9.1300000000000008,1.0144444444444445,"Completed"]
[67259539,"TESTING 10","PT 01 FLEXIBLES INDONESIA",140400,290800,null,null,67259539,"TESTING 10","PT 01 FLEXIBLES INDONESIA",140400,290800,2.0712250712250713,"Completed"]
[67259541,"TESTING 11","PT 01 FLEXIBLES INDONESIA",44400,96600,null,null,67259541,"TESTING 11","PT 01 FLEXIBLES INDONESIA",44400,96600,2.1756756756756759,"Completed"]
[67294774,"TESTING 186","PT 09 BERDAYA CIPTA BUNGKUS",7.8810000000000002,8.01,null,null,{"$f":"A311","v":67294774},"TESTING 186","PT 09 BERDAYA CIPTA BUNGKUS",7.8810000000000002,8.01,1.0163684811572136,"Completed"]
[67294775,"TESTING 09","PT 01 FLEXIBLES INDONESIA",38628,38400,null,null,67294775,"TESTING 09","PT 01 FLEXIBLES INDONESIA",38628,38400,0.99409754582168375,"Completed"]
[67294776,"TESTING 183","PT 09 BERDAYA CIPTA BUNGKUS",1.66,1.82,null,null,67294776,"TESTING 183","PT 09 BERDAYA CIPTA BUNGKUS",1.66,1.82,1.0963855421686748,"Completed"]
[67294777,"TESTING 08","PT 01 FLEXIBLES INDONESIA",14400,69600,null,null,67294777,"TESTING 08","PT 01 FLEXIBLES INDONESIA",14400,69600,4.833333333333333,"Completed"]
[67294778,"TESTING 187","PT 09 BERDAYA CIPTA BUNGKUS",1.5230600000000001,1.53,null,null,67294778,"TESTING 187","PT 09 BERDAYA CIPTA BUNGKUS",1.5230600000000001,1.53,1.0045566162856354,"Completed"]
[67294780,"TESTING 184","PT 09 BERDAYA CIPTA BUNGKUS",1,1.1200000000000001,null,null,67294780,"TESTING 184","PT 09 BERDAYA CIPTA BUNGKUS",1,1.1200000000000001,1.1200000000000001,"Completed"]
[67297678,"TESTING 101","PT 06 INTAN PERMATA",0,null,null,null,67297678,"TESTING 101","PT 06 INTAN PERMATA",0,0,"no buffer stock target","no buffer stock target"]
[67297679,"TESTING 102","PT 06 INTAN PERMATA",0,null,null,null,67297679,"TESTING 102","PT 06 INTAN PERMATA",0,0,"no buffer stock target","no buffer stock target"]
[67305540,"TESTING 180","PT 09 BERDAYA CIPTA BUNGKUS",30,32.17,null,null,67305540,"TESTING 180","PT 09 BERDAYA CIPTA BUNGKUS",30,32.17,1.0723333333333334,"Completed"]
[67339178,"TESTING 118","PT 08 KIRANA PRINT BERSAMA",0,0,null,null,67339178,"TESTING 118","PT 08 KIRANA PRINT BERSAMA",0,0,"no buffer stock target","no buffer stock target"]
["Grand Total",null,null,4362555.3355980311,8609873.3825164922,null,null,"Grand Total",0,0,4362555.3355980311,8609873.3825164922,1.9735849107198149,"Completed"]
[]
[]
[]
[]
[]
[]
[null,null,{"$f":"IF([0]!DashboardSupplier=\"All\",\"Face\",[0]!DashboardSupplier)","v":"Face"},{"$f":"SUMIF(C4:C326,C328,D4:D326)","v":0},{"$f":"SUMIF(C4:C326,C328,E4:E326)","v":0},{"$f":"IFERROR(D328/E328,0)","v":0}]
[null,null,"All",{"$f":"GETPIVOTDATA(\"Sum of Final Buffer Stock Quantity\",$A$3)","v":4362555.3355980311},{"$f":"GETPIVOTDATA(\"Sum of Opening Stock Wk14 + 1\",$A$3)","v":8609873.3825164922},{"$f":"SupplierAllTotalBufferStock/SupplierAllOpeningStock","v":0.50669215931291012}]

{"sheet":"Speedometer","index":3,"n_rows":16,"n_cols":20,"rows_kept":16,"cut":false,"hidden":false,"merged":[[6,2,6,3],[6,5,6,6],[12,2,12,3],[12,5,12,6]]}
[null,null,null,null,null,null,null,null,null,null,"All",{"$f":"'Cat Pivot'!CategoryAllPCT","v":0.5066921593129099},"All",{"$f":"'Supplier Pivot'!SupplierAllPCT","v":0.50669215931291012},"Category Hand & Body Peduli","Category Pelihara Mulut","Category Bau Badan","PT 02 RUPA RUPA  PT.","PT 11 BUNGA KRISANTHIUM OFFSET","PT 10 TOKOH INDONESIA"]
[null,null,null,null,null,null,null,null,null,null,"Category Hand & Body Peduli",0,"PT 02 RUPA RUPA  PT.",0,"Category Kecap No 1","Category Daun dan Bubuk Teh","Category Kondisioner Serat","PT 06 INTAN PERMATA","PT 03 A And Z Indonesia PT.","PT 09 BERDAYA CIPTA BUNGKUS"]
[null,null,null,null,null,null,null,null,null,null,"Category Kecap No 1",0,"PT 06 INTAN PERMATA",0,"Category Peduli Rumah Tangga","Category Ice Cream","Category Cair Cair PW","PT 12 LAPAK PEMULA","PT 08 KIRANA PRINT BERSAMA"]
[null,null,null,null,null,null,null,null,null,null,"Category Peduli Rumah Tangga",0,"PT 12 LAPAK PEMULA",3.5592700086367765E-2,null,"Category Fabrico Cleaner","Category Peduli Rambut",null,"PT 04 PRIMA INDUSTRI"]
[null,null,null,null,null,null,null,null,null,null,"Category Pelihara Mulut",0.40375860964390797,"PT 11 BUNGA KRISANTHIUM OFFSET",0.35692494898363425,null,"Category Muka",null,null,"PT 05 BERKAT DOA PT."]
[null,null,null,null,null,null,null,null,null,null,"Category Daun dan Bubuk Teh",0.45434427058744181,"PT 03 A And Z Indonesia PT.",0.40579710144927539,null,"Category Aneka Kategori",null,null,"PT 01 FLEXIBLES INDONESIA"]
[null,null,"CATEGORY",null,null,"SUPPLIER",null,null,null,null,"Category Ice Cream",0.47476190476190477,"PT 08 KIRANA PRINT BERSAMA",0.45434427058744181,null,"Category Bar Bareng",null,null,"PT 07 AGUNG UTAMA"]
[null,null,{"$f":"D8*$C$11","v":202.67686372516397},{"$f":"OFR0_MeterSource","v":0.5066921593129099},null,{"$f":"G8*$C$11","v":202.67686372516405},{"$f":"Supplier_MeterSource","v":0.50669215931291012},null,null,null,"Category Fabrico Cleaner",0.48054689385541355,"PT 04 PRIMA INDUSTRI",0.46640876881254761,null,"Category Baby Baby",null,null,"PT 13 PRIMA MASTER LABEL"]
[null,null,{"$f":"D9*$C$11","v":8},0.02,null,{"$f":"G9*$C$11","v":8},0.02,null,null,null,"Category Muka",0.5149283879553147,"PT 05 BERKAT DOA PT.",0.47476190476190477]
[null,null,589.32313627483609,{"$f":"D11-D8-D9","v":1.4733078406870901},null,589.32313627483597,{"$f":"G11-G8-G9","v":1.4733078406870899},null,null,null,"Category Aneka Kategori",0.57174824534040003,"PT 01 FLEXIBLES INDONESIA",0.5116213897626537]
[null,null,400,2,null,400,2,null,null,null,"Category Bar Bareng",0.57259195979660182,"PT 07 AGUNG UTAMA",0.57246028328646892]
[null,null,null,null,null,null,null,null,null,null,"Category Baby Baby",0.58823529411764708,"PT 13 PRIMA MASTER LABEL",0.60152070066096874]
[null,null,0.5066921593129099,null,null,0.50669215931291012,null,null,null,null,"Category Bau Badan",0.67153694858106205,"PT 10 TOKOH INDONESIA",0.72727272727272729]
[null,null,null,null,null,null,null,null,null,null,"Category Kondisioner Serat",0.88792423046566682,"PT 09 BERDAYA CIPTA BUNGKUS",1.9570679675618823]
[null,null,null,null,null,null,null,null,null,null,"Category Cair Cair PW",0.88941948962841366]
[null,null,null,null,null,null,null,null,null,null,"Category Peduli Rambut",9.5031466666666642]